Workbook

Sheet Info.Técnica Motor DC
A2: Motor | B2: 1KB2021-0TA02
A3: Serie | B3: K2/2422122
A5: Voltaje entregado por la red | B5: 1500 V CC
A7: Voltaje nominal | B7: 710 V CC
A8: Corriente nominal | B8: 300 A
A10: Valor nominal del factor de excitación de los motores Kfs | B10: 0.6
A11: Factor de excitación Kfs con K15 y K25 cerrados | B11: 0.35 | C11: (En la marcha con alta velocidad y en el frenado). (Con debilitamiento de campo)
A12: Factor de excitación Kfs con R11 y R21 | B12: 0.9 | C12: (Arranque)
A14: Peso medido | B14: 1180 Kg
A15: Dimensiones
A16: Longitud | B16: 1.228 m
A17: Ancho | B17: 0.89 m
A18: Altura | B18: 0.64 m
A20: Velocidad nominal | B20: 1575 rpm
A21: Velocidad máxima | B21: 3500 rpm
A22: Frecuencia de operación | B22: 60
A23: Número de polos | B23: 4
A26: Motor de DC conexión serie
A28: Constante de velocidad del motor | B28: 0,03 Vs/A | O28: Valores curva de vacío
O29: Valores medidos | R29: Valores calculados
A30: Resistencias de los devanados | O30: Ie [A] | P30: Ua [V] | Q30: W [rpm] | R30: Ua0 [V] | S30: C [Vs/A]
A31: Resistencia de la armadura/rotor | B31: 126 mΩ | O31: 0 | P31: 7.4 | Q31: 1775 | R31: 6.57
A32: Resistencia del campo/estator | B32: 46 mΩ | O32: 8 | P32: 51 | Q32: 1777 | R32: 45.2 | S32: 0.034
O33: 19.6 | P33: 118 | Q33: 1777 | R33: 104.59 | S33: 0.032
A34: Inductancia de los devanados (@60 Hz) | O34: 30 | P34: 182 | Q34: 1777 | R34: 161.31 | S34: 0.033
A35: Inductancia de la armadura/rotor | B35: 0,84 mH | O35: 40.5 | P35: 241 | Q35: 1777 | R35: 213.6 | S35: 0.032
A36: Inductancia del campo/estator | B36: 15 mH | O36: 55.4 | P36: 324 | Q36: 1775 | R36: 287.49 | S36: 0.031
O37: 76 | P37: 432 | Q37: 1770 | R37: 384.41 | S37: 0.031
A38: Intensidad permanente | B38: 300 A | O38: 92 | P38: 511 | Q38: 1770 | R38: 454.7 | S38: 0.03
A39: Potencia permanente | B39: 205 kW | O39: 104 | P39: 568 | Q39: 1773 | R39: 504.57 | S39: 0.029
A40: Tensión nominal | B40: 1420/2 V | O40: 117 | P40: 605 | Q40: 1770 | R40: 538.35 | S40: 0.028
O41: 122 | P41: 625 | Q41: 1773 | R41: 555.2 | S41: 0.028
O42: 129 | P42: 639 | Q42: 1770 | R42: 568.6 | S42: 0.027
O43: 140.3 | P43: 667 | Q43: 1769 | R43: 593.85 | S43: 0.026
O44: 152.4 | P44: 693 | Q44: 1769 | R44: 617 | S44: 0.025
O45: 159 | P45: 710 | Q45: 1770 | R45: 631.78 | S45: 0.024
O46: 162 | P46: 709 | Q46: 1768 | R46: 631.6 | S46: 0.024

Sheet Curvas Motor DC
A1: DATOS REQUERIDOS
A2: Valimentación | B2: 710 | C2: V | T2: 710
A3: Rarmadura | B3: 0.126 | C3: Ω | T3: 0.126
A4: Frecuencia de operación | B4: 60 | C4: Hz | T4: 60
A5: Numero de polos | B5: 4 | T5: 4
A6: Ks | B6: 0.03 | C6: Vs/A | T6: 0.03
A7: Inominal | B7: 300 | C7: A | T7: 300
A11: RESULTADOS | F11: Wmr (rpm) | G11: I (A) | H11: T(Nm)
A12: Wmr | B12: 1800 | C12: RPM | F12: -1800 | G12: 6063.492063 | H12: 1737.062522
A13: Iarranque | B13: 5634.920635 | C13: A | F13: -1700 | G13: 6039.68254 | H13: 1730.241596
A14: Velocidad sin carga | B14: 23666.66667 | C14: RPM | F14: -1600 | G14: 6015.873016 | H14: 1723.420669
A15: Kt | B15: 0.2864788976 | C15: Nm/A | F15: -1500 | G15: 5992.063492 | H15: 1716.599743
A16: Torque de arranque | B16: 1614.285851 | C16: Nm | F16: -1400 | G16: 5968.253968 | H16: 1709.778817
A17: Torque nominal | B17: 85.94366927 | C17: Nm | F17: -1300 | G17: 5944.444444 | H17: 1702.957891
A18: Potencia eléctrica nominal | B18: 213000 | C18: W | F18: -1200 | G18: 5920.634921 | H18: 1696.136965
A19: Eficiencia | B19: 94.67605634 | C19: % | F19: -1100 | G19: 5896.825397 | H19: 1689.316039
F20: -1000 | G20: 5873.015873 | H20: 1682.495113
F21: -900 | G21: 5849.206349 | H21: 1675.674187
F22: -800 | G22: 5825.396825 | H22: 1668.85326
F23: -700 | G23: 5801.587302 | H23: 1662.032334
F24: -600 | G24: 5777.777778 | H24: 1655.211408
F25: -500 | G25: 5753.968254 | H25: 1648.390482
F26: -400 | G26: 5730.15873 | H26: 1641.569556
F27: -300 | G27: 5706.349206 | H27: 1634.74863
F28: -200 | G28: 5682.539683 | H28: 1627.927704
F29: -100 | G29: 5658.730159 | H29: 1621.106777
F30: 0 | G30: 5634.920635 | H30: 1614.285851
F31: 100 | G31: 5611.111111 | H31: 1607.464925
F32: 200 | G32: 5587.301587 | H32: 1600.643999
F33: 300 | G33: 5563.492063 | H33: 1593.823073
F34: 400 | G34: 5539.68254 | H34: 1587.002147
F35: 500 | G35: 5515.873016 | H35: 1580.181221
F36: 600 | G36: 5492.063492 | H36: 1573.360295
F37: 700 | G37: 5468.253968 | H37: 1566.539368
F38: 800 | G38: 5444.444444 | H38: 1559.718442
F39: 900 | G39: 5420.634921 | H39: 1552.897516
F40: 1000 | G40: 5396.825397 | H40: 1546.07659
F41: 1100 | G41: 5373.015873 | H41: 1539.255664
F42: 1200 | G42: 5349.206349 | H42: 1532.434738
F43: 1300 | G43: 5325.396825 | H43: 1525.613812
F44: 1400 | G44: 5301.587302 | H44: 1518.792886
F45: 1500 | G45: 5277.777778 | H45: 1511.971959
F46: 1600 | G46: 5253.968254 | H46: 1505.151033
F47: 1700 | G47: 5230.15873 | H47: 1498.330107
F48: 1800 | G48: 5206.349206 | H48: 1491.509181

Sheet Info.Técnica Motor AC
E1: Test aumento de temperatura | K1: Mediciones con rotor bloqueado (ensayo en corto ) | AX1: Mediciones sin carga (Ensayo en vacío)
AC2: Valores en freno | AM2: Valores fuerza tracción
O3: Factor de potencia | P3: Resistencia (medida) | Q3: Resistencia total | R3: Resistencia estator | S3: Resistencia rotor | T3: Temperatura estator | U3: Resistencia rotor | V3: Resistencia rotor | W3: Rserie | X3: Q | Y3: Xserie | Z3: Iarranque | AA3: Deslizamiento | AC3: Tensión CC en bornes | AD3: Velocidad speed | AE3: Tensión entre fases, valor RMS de la onda fundamental | AF3: Corriente I1, valor RMS de la onda fundamental | AG3: Frecuencia estator | AH3: Par motor | AI3: Potencia eléctrica | AJ3: Eficiencia corregida | AK3: Deslizamiento | AM3: Tensión CC en bornes | AN3: Velocidad speed | AO3: Tensión entre fases, valor RMS de la onda fundamental | AP3: Corriente I1, valor RMS de la onda fundamental | AQ3: Frecuencia estator | AR3: Par motor | AS3: Potencia eléctrica | AT3: Eficiencia corregida | AU3: Deslizamiento | AX3: Frecuencia [Hz] | AY3: Tensión [V] | AZ3: Corriente [A] | BA3: Potencia [W] | BB3: Cosfi/1 | BC3: Pcu [W] | BD3: Pfe [W] | BE3: Tw [˚C] | BF3: R U-V [Ohm] | BG3: R 20˚C [ohm] | BH3: Rshunt (ohm) | BI3: Q | BJ3: X (ohm)
A4: Motor de tracción | B4: 1TB1817-0TA02 | F4: Valores calculados | G4: Valores medidos, motor de comprobación de tipo (SN:K2-3952559)
A5: Tipo de motor | B5: Motor de inducción trifásico asíncrono con rotor de jaula | K5: Frecuencia [Hz] | L5: Tensión [V] | M5: Corriente [A] | N5: Potencia de entrada [W] | O5: Cos Phi/1 | P5: Ru-v (ohm) | Q5: Rtotal (ohm) | R5: R1 (ohm) | S5: R2' (ohm) | T5: (˚C) | U5: R2' 20˚C (Ohm) | V5: R2' 20˚C (ohm) | W5: (ohm) | X5: (var) | Y5: (ohm) | Z5: (A) | AA5: S | AC5: U-d [V] | AD5: n [rpm] | AE5: U1-G [V] | AF5: I1-G [A] | AG5: f1 [Hz] | AH5: M [Nm] | AI5: P-elec [kW] | AJ5: Eta | AK5: S | AM5: U-d [V] | AN5: n [rpm] | AO5: U1-G [V] | AP5: I1-G [A] | AQ5: f1 [Hz] | AR5: M [Nm] | AS5: P-elec [kW] | AT5: Eta | AU5: S | AX5: 60.7 | AY5: 1375 | AZ5: 79.8 | BA5: 7710 | BB5: 0.0405 | BC5: 1360 | BD5: 5700 | BE5: 28.2 | BF5: 0.1424 | BG5: 0.1379 | BH5: =((BA5/3)/(AZ5^2)) -> 0.403577867 | BI5: =(SQRT((AZ5*AY5)^2-(BA5)^2))/3 -> 36484.59572 | BJ5: =BI5/(AZ5^2) -> 5.729328918
E6: Duración de la comprobación (hasta que la temperatura se haya estabilizado) [min] | F6: - | G6: 259 | K6: 50 | L6: 252 | M6: 219 | N6: 25560 | O6: 0.2674 | P6: 0.1517 | Q6: 0.1776 | R6: 0.0759 | S6: 0.1017 | T6: 45.5 | U6: 0.0925 | V6: 0.0908 | W6: =(N6/3)/(M6^2) -> 0.177644336 | X6: =(SQRT((L6*M6)^2-(N6)^2))/3 -> 16304.06133 | Y6: =(X6/(M6^2)) -> 0.3399441491 | Z6: =(L6/SQRT(3))/SQRT((W6+(S6/$AA$6))^2+(Y6)^2) -> 330.6682738 | AA6: 1 | AC6: 1800 | AD6: 350 | AE6: 180 | AF6: 209 | AG6: 10.4 | AH6: 2127 | AI6: 50.8 | AJ6: 0.662 | AK6: 0.123 | AM6: 1450 | AN6: 200 | AO6: 191 | AP6: 181 | AQ6: 7.8 | AR6: 1770 | AS6: 56.6 | AT6: 0.662 | AU6: 0.141 | AX6: 60.7 | AY6: 1329 | AZ6: 70.7 | BA6: 6510 | BB6: 0.0399 | BC6: 1071 | BD6: 4789 | BE6: 29 | BF6: 0.1428 | BH6: =((BA6/3)/(AZ6^2)) -> 0.4341311076 | BI6: =(SQRT((AZ6*AY6)^2-(BA6)^2))/3 -> 31244.8358 | BJ6: =BI6/(AZ6^2) -> 6.250854918
A7: Número de polos | B7: 4 | E7: Velocidad [min^-1] | F7: 1800 | G7: 1800 | K7: 50 | L7: 214 | M7: 179 | N7: 17250 | O7: 0.2605 | P7: 0.1534 | Q7: 0.1799 | R7: 0.0767 | S7: 0.1032 | T7: 48.5 | U7: 0.0928 | W7: =(N7/3)/(M7^2) -> 0.17945757 | X7: =(SQRT((L7*M7)^2-(N7)^2))/3 -> 11400.71701 | Y7: =(X7/(M7^2)) -> 0.3558165168 | Z7: =(L7/SQRT(3))/SQRT((W7+(S7/$AA$6))^2+(Y7)^2) -> 271.8894691 | AC7: 1800 | AD7: 500 | AE7: 297 | AF7: 206 | AG7: 15.4 | AH7: 2132 | AI7: 82.9 | AJ7: 0.75 | AK7: 0.08 | AM7: 1450 | AN7: 500 | AO7: 404 | AP7: 180 | AQ7: 17.7 | AR7: 1770 | AS7: 114.4 | AT7: 0.814 | AU7: 0.059 | AX7: 60.7 | AY7: 1272 | AZ7: 60.63 | BA7: 5390 | BB7: 0.0403 | BC7: 790 | BD7: 3950 | BE7: 29.7 | BF7: 0.1432 | BH7: 0.4887563063 | BI7: 25644.25876 | BJ7: 6.976137212
A8: Número de arrollamientos | B8: 64 | E8: Par * | F8: 1059 | G8: 1061 | J8: Datos circuito equivalente 50 Hz | K8: 50 | L8: 184 | M8: 149 | N8: 12111 | O8: 0.2545 | P8: 0.155 | Q8: 0.181 | R8: 0.0775 | S8: 0.1035 | T8: 51.5 | U8: 0.0921 | W8: 0.1818386559 | X8: 8198.649855 | Y8: =(X8/(M8^2)) -> 0.3692919173 | Z8: =(L8/SQRT(3))/SQRT((W8+(S8/$AA$6))^2+(Y8)^2) -> 227.6321358 | AC8: 1800 | AD8: 750 | AE8: 484 | AF8: 204 | AG8: 23.8 | AH8: 2129 | AI8: 135.6 | AJ8: 0.816 | AK8: 0.049 | AM8: 1450 | AN8: 750 | AO8: 577 | AP8: 180 | AQ8: 26 | AR8: 1773 | AS8: 161.6 | AT8: 0.865 | AU8: 0.037 | AX8: 60.7 | AY8: 1191 | AZ8: 50.39 | BA8: 4310 | BB8: 0.0414 | BC8: 547 | BD8: 3113 | BE8: 30.5 | BF8: 0.1436 | BH8: 0.5658056745 | BI8: 19953.17549 | BJ8: 7.858204119
A9: Clase de aislamiento | B9: 220 | E9: Tensión DC-Link | F9: 1500 | G9: 1500 | K9: 50 | L9: 154 | M9: 122 | N9: 8065 | O9: 0.2487 | P9: 0.1566 | Q9: 0.1814 | R9: 0.0783 | S9: 0.1031 | T9: 54.6 | U9: 0.0908 | W9: 0.1806190092 | X9: 5656.311313 | Y9: =(X9/(M9^2)) -> 0.3800262908 | Z9: 187.4776391 | AC9: 1800 | AD9: 1000 | AE9: 665 | AF9: 205 | AG9: 32.1 | AH9: 2136 | AI9: 189.3 | AJ9: 0.85 | AK9: 0.037 | AM9: 1450 | AN9: 1000 | AO9: 762 | AP9: 180 | AQ9: 34.3 | AR9: 1771 | AS9: 209.3 | AT9: 0.889 | AU9: 0.03 | AX9: 60.7 | AY9: 1075 | AZ9: 40.27 | BA9: 3280 | BB9: 0.0437 | BC9: 350 | BD9: 2280 | BE9: 31.3 | BF9: 0.144 | BH9: 0.6742009029 | BI9: 14388.60408 | BJ9: 8.872691944
A10: Velocidad operacional máxima | B10: 3157 RPM | E10: Frecuencia | F10: 60.7 | G10: 60.8 | K10: 50 | L10: 129 | M10: 101 | N10: 5556 | O10: 0.2461 | P10: 0.1583 | Q10: 0.1815 | R10: 0.0791 | S10: 0.1023 | T10: 57.6 | U10: 0.0892 | W10: 0.1815508284 | X10: 3928.325979 | Y10: =(X10/(M10^2)) -> 0.3850922438 | Z10: 155.6815627 | AC10: 1800 | AD10: 1250 | AE10: 849 | AF10: 204 | AG10: 40.5 | AH10: 2133 | AI10: 243.2 | AJ10: 0.874 | AK10: 0.029 | AM10: 1450 | AN10: 1250 | AO10: 940 | AP10: 180 | AQ10: 42.7 | AR10: 1770 | AS10: 255.6 | AT10: 0.909 | AU10: 0.023 | AX10: 60.7 | AY10: 882 | AZ10: 29.93 | BA10: 2300 | BB10: 0.0501 | BC10: 194 | BD10: 1456 | BE10: 32 | BF10: 0.1444 | BH10: 0.8558411175 | BI10: 8765.957709 | BJ10: 9.785565706
E11: Tensión (Valor RMS de la onda fundamental) | F11: 1146 | G11: 1160 | K11: 50 | L11: 102 | M11: 79 | N11: 3424 | O11: 0.2447 | P11: 0.1599 | Q11: 0.1817 | R11: 0.08 | S11: 0.1017 | T11: 60.6 | U11: 0.0877 | W11: 0.1828766757 | X11: 2431.451053 | Y11: 0.3895931826 | Z11: 122.0616087 | AC11: 1800 | AD11: 1500 | AE11: 1028 | AF11: 204 | AG11: 48.8 | AH11: 2132 | AI11: 297.2 | AJ11: 0.89 | AK11: 0.024 | AM11: 1450 | AN11: 1500 | AO11: 1111 | AP11: 178 | AQ11: 51 | AR11: 1746 | AS11: 295.9 | AT11: 0.929 | AU11: 0.019 | AX11: 60.7 | AY11: 629 | AZ11: 20.26 | BA11: 1391 | BB11: 0.063 | BC11: 89 | BD11: 652 | BE11: 32.8 | BF11: 0.1449 | BH11: 1.129606007 | BI11: 4222.465456 | BJ11: 10.28696408
A12: Peso medido | B12: 860 Kg | E12: Corriente (valor RMS de la onda fundamental) | F12: 121 | G12: 122 | K12: 60.7 | L12: 303 | M12: 219 | N12: 27410 | O12: 0.2383 | P12: 0.1537 | Q12: 0.1897 | R12: 0.0768 | S12: 0.1128 | T12: 49 | U12: 0.1013 | V12: 0.1017 | W12: 0.1905020051 | X12: 20143.77033 | Y12: 0.4200031345 | Z12: 337.6719623 | AC12: 1800 | AD12: 1750 | AE12: 1215 | AF12: 204 | AG12: 57.2 | AH12: 2130 | AI12: 352.9 | AJ12: 0.906 | AK12: 0.021 | AM12: 1450 | AN12: 2000 | AO12: 1111 | AP12: 167 | AQ12: 68 | AR12: 1296 | AS12: 292.7 | AT12: 0.929 | AU12: 0.02
A13: Dimensiones | E13: Potencia mecánica entregada Pmec [kW] | F13: 200 | G13: 200.2 | K13: 60.7 | L13: 259 | M13: 181 | N13: 18832 | O13: 0.2324 | P13: 0.1549 | Q13: 0.1924 | R13: 0.0775 | S13: 0.115 | T13: 51.4 | U13: 0.1024 | W13: 0.1916099427 | X13: 14310.04471 | Y13: 0.4368012183 | Z13: 280.1982132 | AC13: 1800 | AD13: 2000 | AE13: 1400 | AF13: 204 | AG13: 66.5 | AH13: 2132 | AI13: 409.2 | AJ13: 0.918 | AK13: 0.018 | AM13: 1450 | AN13: 2250 | AO13: 1120 | AP13: 170 | AQ13: 76.5 | AR13: 1171 | AS13: 298.9 | AT13: 0.925 | AU13: 0.02
A14: Longitud | B14: 0,98 m | E14: Rendimiento [%] | F14: 93.6 | G14: 94 | K14: 60.7 | L14: 221 | M14: 149 | N14: 13029 | O14: 0.2279 | P14: 0.1562 | Q14: 0.1952 | R14: 0.0781 | S14: 0.1171 | T14: 53.7 | U14: 0.1034 | W14: 0.1956218188 | X14: 10080.5875 | Y14: 0.4540600651 | Z14: 231.4299249 | AC14: 1800 | AD14: 2250 | AE14: 1395 | AF14: 219 | AG14: 73.6 | AH14: 2131 | AI14: 458.5 | AJ14: 0.915 | AK14: 0.02 | AM14: 1450 | AN14: 2500 | AO14: 1141 | AP14: 167 | AQ14: 85 | AR14: 1050 | AS14: 299.8 | AT14: 0.919 | AU14: 0.02
A15: Ancho | B15: 0,52 m | E15: Deslizamiento [%] | F15: 1.22 | G15: 1.26 | J15: Datos circuito equivalente 60 Hz | K15: 60.7 | L15: 184 | M15: 121 | N15: 8515 | O15: 0.2222 | P15: 0.1574 | Q15: 0.1954 | R15: 0.0787 | S15: 0.1167 | T15: 56 | U15: 0.1022 | W15: 0.1938619857 | X15: 6857.116911 | Y15: 0.4683503115 | Z15: 189.0386509 | AC15: 1800 | AD15: 2500 | AE15: 1431 | AF15: 222 | AG15: 81.6 | AH15: 2020 | AI15: 480.1 | AJ15: 0.91 | AK15: 0.021 | AM15: 1450 | AN15: 2750 | AO15: 1142 | AP15: 169 | AQ15: 93.5 | AR15: 959 | AS15: 301.5 | AT15: 0.917 | AU15: 0.02
A16: Altura | B16: 0,52 m | E16: Patrón de pulsos | G16: 9 Pulsos | K16: 60.7 | L16: 154 | M16: 100 | N16: 5871 | O16: 0.2197 | P16: 0.1587 | Q16: 0.1957 | R16: 0.0793 | S16: 0.1164 | T16: 58.3 | U16: 0.1012 | W16: 0.1957 | X16: 4745.657184 | Y16: 0.4745657184 | Z16: 156.5363136 | AC16: 1800 | AD16: 2750 | AE16: 1436 | AF16: 221 | AG16: 89.9 | AH16: 1838 | AI16: 481.8 | AJ16: 0.912 | AK16: 0.02 | AM16: 1450 | AN16: 3000 | AO16: 1142 | AP16: 167 | AQ16: 102.1 | AR16: 853 | AS16: 294.6 | AT16: 0.911 | AU16: 0.02
K17: 60.7 | L17: 124 | M17: 80 | N17: 3763 | O17: 0.2184 | P17: 0.1599 | Q17: 0.1954 | R17: 0.08 | S17: 0.1155 | T17: 60.6 | U17: 0.0966 | W17: =(N17/3)/(M17^2) -> 0.1959895833 | X17: 3059.524854 | Y17: 0.4780507585 | Z17: 125.4719593 | AC17: 1800 | AD17: 3000 | AE17: 1432 | AF17: 222 | AG17: 98 | AH17: 1685 | AI17: 479.5 | AJ17: 0.908 | AK17: 0.021 | AM17: 1450 | AN17: 3157 | AO17: 1142 | AP17: 176 | AQ17: 107.6 | AR17: 836 | AS17: 306.2 | AT17: 0.904 | AU17: 0.022
A18: Voltaje nominal | B18: 1146 V (LL) | AC18: 1800 | AD18: 3157 | AE18: 1432 | AF18: 223 | AG18: 103 | AH18: 1601 | AI18: 478.3 | AJ18: 0.905 | AK18: 0.021
A19: Corriente | B19: 121 A
A20: Velocidad | B20: 1800 RPM
A21: Potencia eléctrica de entrada | B21: 200 kW
A22: Par | B22: 1059 N*m
A23: Eficiencia | B23: 0.936

Sheet Curvas Motor AC
F1: Con frecuencia de 60 Hz | Q1: Con frecuencia de 50 Hz
A2: Número de polos | B2: Frecuencia [Hz] | C2: We [rpm] | G2: Deslizamiento positivo | K2: Deslizamiento negativo | R2: Deslizamiento positivo | V2: Deslizamiento negativo
A3: 4 | B3: 60 | C3: =(120*B3)/$A$3 -> 1800 | F3: Wmr [rpm] | G3: S + | H3: Ie [A] | I3: Pmec [W] | J3: T [Nm] | K3: s- | L3: Ie [A] | M3: (-) T[Nm] | N3: Torque 1 fase [Nm] | O3: 2100 | Q3: Wmr [rpm] | R3: S + | S3: Ie [A] | T3: Pmec [W] | U3: T [Nm] | V3: s- | W3: Ie [A] | X3: (-) T[Nm] | Y3: Torque 1 fase [Nm]
B4: 50 | C4: =(120*B4)/$A$3 -> 1500 | F4: -2500 | G4: =($C$3-$F4)/$C$3 -> 2.388888889 | H4: =($B$7)/SQRT(($B$8+($B$9/$G4))^2+($B$10)^2) -> 1254.288047 | I4: =3*(H4)^2*($B$9*(1-G4)/G4) -> -320227.2096 | J4: =3*(H4)^2*$B$9/(G4*($C$3*(2*PI()/60))) -> 1223.17784 | K4: =(-$C$3-$F4)/-$C$3 -> -0.3888888889 | L4: =($B$7)/SQRT(($B$8+($B$9/$K4))^2+($B$10)^2) -> 1377.719855 | M4: =-1*(3*(L4)^2*$B$9/(K4*($C$3*(2*PI()/60)))) -> 9065.40659 | N4: =J4+M4 -> 10288.58443 | O4: 2100 | Q4: -2500 | R4: =($C$4-$Q4)/$C$4 -> 2.666666667 | S4: =($C$7)/SQRT(($C$8+($C$9/$R4))^2+($C$10)^2) -> 246.9430827 | T4: =3*(S4)^2*($C$9*(1-R4)/R4) -> -11834.10321 | U4: =3*(S4)^2*$C$9/(R4*($C$4*(2*PI()/60))) -> 45.20294454 | V4: =(-$C$4-$Q4)/-$C$4 -> -0.6666666667 | W4: =($C$7)/SQRT(($C$8+($C$9/$V4))^2+($C$10)^2) -> 286.9225225 | X4: =-1*(3*(W4)^2*$C$9/(V4*($C$4*(2*PI()/60)))) -> 244.0969018 | Y4: =U4+X4 -> 289.2998463
F5: -2450 | G5: =($C$3-F5)/$C$3 -> 2.361111111 | H5: =($B$7)/SQRT(($B$8+($B$9/$G5))^2+($B$10)^2) -> 1253.659004 | I5: =3*(H5)^2*($B$9*(1-G5)/G5) -> -317196.3005 | J5: =3*(H5)^2*$B$9/(G5*($C$3*(2*PI()/60))) -> 1236.327163 | K5: =(-$C$3-$F5)/-$C$3 -> -0.3611111111 | L5: =($B$7)/SQRT(($B$8+($B$9/$K5))^2+($B$10)^2) -> 1361.762602 | M5: =-1*(3*(L5)^2*$B$9/(K5*($C$3*(2*PI()/60)))) -> 9537.903893 | N5: =J5+M5 -> 10774.23106 | O5: 2100 | Q5: -2450 | R5: =($C$4-$Q5)/$C$4 -> 2.633333333 | S5: =($C$7)/SQRT(($C$8+($C$9/$R5))^2+($C$10)^2) -> 246.7983961 | T5: =3*(S5)^2*($C$9*(1-R5)/R5) -> -11730.46584 | U5: =3*(S5)^2*$C$9/(R5*($C$4*(2*PI()/60))) -> 45.72150914 | V5: =(-$C$4-$Q5)/-$C$4 -> -0.6333333333 | W5: =($C$7)/SQRT(($C$8+($C$9/$V5))^2+($C$10)^2) -> 287.3081565 | X5: =-1*(3*(W5)^2*$C$9/(V5*($C$4*(2*PI()/60)))) -> 257.6352552 | Y5: =U5+X5 -> 303.3567644
B6: Parámetros @60 Hz | C6: Parámetros @50 Hz | F6: -2400 | G6: 2.333333333 | H6: =($B$7)/SQRT(($B$8+($B$9/$G6))^2+($B$10)^2) -> 1253.014426 | I6: -314098.7471 | J6: 1249.759205 | K6: -0.3333333333 | L6: 1340.110756 | M6: 10006.76332 | N6: 11256.52253 | O6: 2100 | Q6: -2400 | R6: 2.6 | S6: 246.6499301 | T6: -11624.39161 | U6: 46.25198465 | V6: =(-$C$4-$Q6)/-$C$4 -> -0.6 | W6: 287.5733097 | X6: 272.4505121 | Y6: 318.7024968
A7: VLN [V] | B7: =1146/SQRT(3) -> 661.6434085 | C7: =('[1]Motores AC_2'!L8)/SQRT(3) -> 106.2324495 | F7: -2350 | G7: 2.305555556 | H7: 1252.353735 | I7: -310932.3483 | J7: 1263.483069 | K7: -0.3055555556 | L7: 1310.967678 | M7: 10446.83588 | N7: 11710.31895 | O7: 2100 | Q7: -2350 | R7: 2.566666667 | S7: 246.4975357 | T7: -11515.79436 | U7: 46.79478116 | V7: -0.5666666667 | W7: 287.6645549 | X7: 288.6601058 | Y7: 335.4548869
A8: Re [Ω] | B8: ='[1]Motores AC_2'!W15 -> 0.1938619857 | C8: ='[1]Motores AC_2'!W8 -> 0.1818386559 | F8: -2300 | G8: 2.277777778 | H8: 1251.676325 | I8: -307694.8064 | J8: 1277.508245 | K8: -0.2777777778 | L8: 1272.05085 | M8: 10819.38146 | N8: 12096.88971 | O8: 2100 | Q8: -2300 | R8: 2.533333333 | S8: 246.3410561 | T8: -11404.58383 | U8: 47.35032758 | V8: -0.5333333333 | W8: 287.5077818 | X8: 306.3671577 | Y8: 353.7174853
A9: Rr' [Ω] | B9: ='[1]Motores AC_2'!S15 -> 0.1167 | C9: ='[1]Motores AC_2'!S8 -> 0.1035 | F9: -2250 | G9: 2.25 | H9: 1250.981561 | I9: -304383.7215 | J9: 1291.844637 | K9: -0.25 | L9: 1220.571517 | M9: 11068.21129 | N9: 12360.05593 | O9: 2100 | Q9: -2250 | R9: 2.5 | S9: 246.1803262 | T9: -11290.66548 | U9: 47.91907259 | V9: -0.5 | W9: 286.9998536 | X9: 325.6379962 | Y9: 373.5570688
A10: Xt [Ω] | B10: ='[1]Motores AC_2'!Y15 -> 0.4683503115 | C10: ='[1]Motores AC_2'!Y8 -> 0.3692919173 | F10: -2200 | G10: 2.222222222 | H10: =($B$7)/SQRT(($B$8+($B$9/$G10))^2+($B$10)^2) -> 1250.268774 | I10: -300996.5857 | J10: 1306.502576 | K10: -0.2222222222 | L10: 1153.340563 | M10: 11117.79429 | N10: 12424.29687 | O10: 2100 | Q10: -2200 | R10: 2.466666667 | S10: 246.0151717 | T10: -11173.9402 | U10: 48.50148591 | V10: -0.4666666667 | W10: 285.9968588 | X10: 346.4634875 | Y10: 394.9649735
F11: -2150 | G11: 2.194444444 | H11: 1249.537259 | I11: -297530.777 | J11: 1321.492852 | K11: -0.1944444444 | L11: 1067.112132 | M11: 10877.16117 | N11: 12198.65402 | O11: 2100 | Q11: -2150 | R11: 2.433333333 | S11: 245.845409 | T11: -11054.30403 | U11: 49.09805941 | V11: -0.4333333333 | W11: 284.2977772 | X11: 368.6944145 | Y11: 417.7924739
F12: -2100 | G12: 2.166666667 | H12: 1248.786278 | I12: -293983.5532 | J12: 1336.826734 | K12: -0.1666666667 | L12: 959.2761121 | M12: 10254.85438 | N12: 11591.68111 | O12: 2100 | Q12: -2100 | R12: 2.4 | S12: 245.670844 | T12: -10931.64788 | U12: 49.70930845 | V12: -0.4 | W12: 281.6223671 | X12: 391.9367845 | Y12: 441.646093
F13: -2050 | G13: 2.138888889 | H13: =($B$7)/SQRT(($B$8+($B$9/$G13))^2+($B$10)^2) -> 1248.015052 | I13: -290352.0448 | J13: 1352.515995 | K13: -0.1388888889 | L13: 828.8976602 | M13: 9188.091501 | N13: 10540.6075 | O13: 2100 | Q13: -2050 | R13: 2.366666667 | S13: 245.4912718 | T13: -10805.8572 | U13: 50.3357733 | V13: -0.3666666667 | W13: 277.5827396 | X13: 415.3892112 | Y13: 465.7249845
F14: -2000 | G14: 2.111111111 | H14: 1247.222759 | I14: -286633.2475 | J14: 1368.572946 | K14: -0.1111111111 | L14: 677.8200889 | M14: 7680.020324 | N14: 9048.593271 | O14: 2100 | Q14: -2000 | R14: 2.333333333 | S14: 245.3064757 | T14: -10676.81166 | U14: 50.97802057 | V14: -0.3333333333 | W14: 271.650482 | X14: 437.6066792 | Y14: 488.5846998
F15: -1950 | G15: 2.083333333 | H15: 1246.408535 | I15: -282824.0146 | J15: 1385.01046 | K15: -0.08333333333 | L15: 511.2171756 | M15: 5824.828016 | N15: 7209.838476 | O15: 2100 | Q15: -1950 | R15: 2.3 | S15: 245.1162265 | T15: -10544.38477 | U15: 51.63664484 | V15: -0.3 | W15: 263.1272734 | X15: 456.1967677 | Y15: 507.8334125
F16: -1900 | G16: 2.055555556 | H16: 1245.571466 | I16: -278921.0483 | J16: 1401.842007 | K16: -0.05555555556 | L16: 336.9858721 | M16: 3796.530388 | N16: 5198.372395 | O16: 2100 | Q16: -1900 | R16: 2.266666667 | S16: 244.9202813 | T16: -10408.44347 | U16: 52.31227034 | V16: -0.2666666667 | W16: 251.1394367 | X16: 467.5228339 | Y16: 519.8351042
F17: -1850 | G17: 2.027777778 | H17: 1244.710588 | I17: -274920.8909 | J17: 1419.081689 | K17: -0.02777777778 | L17: 163.9917503 | M17: 1798.197919 | N17: 3217.279608 | O17: 2100 | Q17: -1850 | R17: 2.233333333 | S17: 244.718383 | T17: -10268.84774 | U17: 53.00555281 | V17: -0.2333333333 | W17: 234.696609 | X17: 466.6363555 | Y17: 519.6419084
F18: -1800 | G18: 2 | H18: 1243.824885 | I18: -270819.9152 | J18: 1436.744273 | K18: 0 | O18: 2100 | Q18: -1800 | R18: 2.2 | S18: 244.5102586 | T18: -10125.45015 | U18: 53.71718141 | V18: -0.2 | W18: 212.8718486 | X18: 447.8661041 | Y18: 501.5832855
F19: -1750 | G19: 1.972222222 | H19: 1242.913278 | I19: -266614.3139 | J19: 1454.845233 | K19: 0.02777777778 | L19: 149.6949106 | M19: -1498.33029 | N19: -43.48505738 | O19: 2100 | Q19: -1750 | R19: 2.166666667 | S19: 244.2956186 | T19: -9978.095316 | U19: 54.44788088 | V19: -0.1666666667 | W19: 185.1404959 | X19: 406.5330171 | Y19: 460.980898
F20: -1700 | G20: 1.944444444 | H20: 1241.974631 | I20: -262300.0886 | J20: 1473.400788 | K20: 0.05555555556 | L20: 282.5393341 | M20: -2668.83256 | N20: -1195.431771 | O20: 2100 | Q20: -1700 | R20: 2.133333333 | S20: 244.0741551 | T20: -9826.619428 | U20: 55.19841373 | V20: -0.1333333333 | W20: 151.8069091 | X20: 341.6536514 | Y20: 396.8520652
F21: -1650 | G21: 1.916666667 | H21: 1241.007736 | I21: -257873.0382 | J21: 1492.427953 | K21: 0.08333333333 | L21: 398.1887218 | M21: -3533.866538 | N21: -2041.438585 | O21: 2100 | Q21: -1650 | R21: 2.1 | S21: 243.8455409 | T21: -9670.849648 | U21: 55.96958274 | V21: -0.1 | W21: 114.2706738 | X21: 258.1138471 | Y21: 314.0834299
F22: -1600 | G22: 1.888888889 | H22: 1240.011315 | I22: -253328.7457 | J22: 1511.944579 | K22: 0.1111111111 | L22: 497.7026463 | M22: -4140.696477 | N22: -2628.751898 | O22: 2100 | Q22: -1600 | R22: 2.066666667 | S22: 243.6094277 | T22: -9510.603504 | U22: 56.76223348 | V22: -0.06666666667 | W22: 74.83591537 | X22: 166.0554511 | Y22: 222.8176846
F23: -1550 | G23: 1.861111111 | H23: 1238.984015 | I23: -248662.5646 | J23: 1531.969406 | K23: 0.1388888889 | L23: 582.83401 | M23: -4542.691626 | N23: -3010.722219 | O23: 2100 | Q23: -1550 | R23: 2.033333333 | S23: 243.3654444 | T23: -9345.688221 | U23: 57.57725717 | V23: -0.03333333333 | W23: 36.05504941 | X23: 77.08948995 | Y23: 134.6667471
F24: -1500 | G24: 1.833333333 | H24: 1237.924397 | I24: -243869.6044 | J24: 1552.52212 | K24: 0.1666666667 | L24: 655.5428465 | M24: -4788.995217 | N24: -3236.473097 | O24: 2100 | Q24: -1500 | R24: 2 | S24: 243.1131953 | T24: -9175.899997 | U24: 58.41559367 | V24: 0
F25: -1450 | G25: 1.805555556 | H25: 1236.830932 | I25: -238944.7142 | J25: 1573.623409 | K25: 0.1944444444 | L25: 717.720136 | M25: -4920.460049 | N25: -3346.836639 | O25: 2100 | Q25: -1450 | R25: 1.966666667 | S25: 242.852258 | T25: -9001.023225 | U25: 59.27823472 | V25: 0.03333333333 | W25: 32.11846562 | X25: -61.17480049 | Y25: -1.896565766
F26: -1400 | G26: 1.777777778 | H26: 1235.701996 | I26: -233882.4661 | J26: 1595.295025 | K26: 0.2222222222 | L26: 771.0591034 | M26: -4969.112617 | N26: -3373.817592 | O26: 2100 | Q26: -1400 | R26: 1.933333333 | S26: 242.5821809 | T26: -8820.829645 | U26: 60.16622744 | V26: 0.06666666667 | W26: 59.90936521 | X26: -106.4197961 | Y26: -46.25356863
F27: -1350 | G27: 1.75 | H27: 1234.535861 | I27: -228677.1363 | J27: 1617.55985 | K27: 0.25 | L27: 817.014162 | M27: -4959.183155 | N27: -3341.623305 | O27: 2100 | Q27: -1350 | R27: 1.9 | S27: 242.3024813 | T27: -8635.077425 | U27: 61.08067805 | V27: 0.1 | W27: 83.53960259 | X27: -137.951535 | Y27: -76.87085697
F28: -1300 | G28: 1.722222222 | H28: 1233.330684 | I28: -223322.6857 | J28: 1640.441969 | K28: 0.2777777778 | L28: 856.8053243 | M28: -4908.601793 | N28: -3268.159824 | O28: 2100 | Q28: -1300 | R28: 1.866666667 | S28: 242.0126418 | T28: -8443.510163 | U28: 62.02275597 | V28: 0.1333333333 | W28: 103.4601138 | X28: -158.6897568 | Y28: -96.66700085
F29: -1250 | G29: 1.694444444 | H29: 1232.084503 | I29: -217812.738 | J29: 1663.966748 | K29: 0.3055555556 | L29: 891.4426418 | M29: -4830.450237 | N29: -3166.483489 | O29: 2100 | Q29: -1250 | R29: 1.833333333 | S29: 241.7121082 | T29: -8245.855806 | U29: 62.99369816 | V29: 0.1666666667 | W29: 120.2131938 | X29: -171.3946451 | Y29: -108.4009469
F30: -1200 | G30: 1.666666667 | H30: 1230.795221 | I30: -212140.5569 | J30: 1688.160913 | K30: 0.3333333333 | L30: 921.7569041 | M30: -4734.182992 | N30: -3046.022079 | O30: 2100 | Q30: -1200 | R30: 1.8 | S30: 241.4002851 | T30: -8041.825475 | U30: 63.99481379 | V30: 0.2 | W30: 134.3261365 | X30: -178.3334368 | Y30: -114.338623
F31: -1150 | G31: 1.638888889 | H31: 1229.4606 | I31: -206299.0207 | J31: 1713.052639 | K31: 0.3611111111 | L31: 948.4298914 | M31: -4626.585605 | N31: -2913.532967 | O31: 2100 | Q31: -1150 | R31: 1.766666667 | S31: 241.076533 | T31: -7831.112177 | U31: 65.02748937 | V31: 0.2333333333 | W31: 146.2648869 | X31: -181.2362641 | Y31: -116.2087748
F32: -1100 | G32: 1.611111111 | H32: 1228.078246 | I32: -200280.5957 | J32: 1738.671645 | K32: 0.3888888889 | L32: 972.0213547 | M32: -4512.498444 | N32: -2773.8268 | O32: 2100 | Q32: -1100 | R32: 1.733333333 | S32: 240.7401636 | T32: -7613.389419 | U32: 66.09319417 | V32: 0.2666666667 | W32: 156.4213486 | X32: -181.3698304 | Y32: -115.2766363
F33: -1050 | G33: 1.583333333 | H33: 1226.645594 | I33: -194077.3065 | J33: 1765.049296 | K33: 0.4166666667 | L33: 992.991888 | M33: -4395.351692 | N33: -2630.302396 | O33: 2100 | Q33: -1050 | R33: 1.7 | S33: 240.3904352 | T33: -7388.309681 | U33: 67.1934861 | V33: 0.3 | W33: 165.1166482 | X33: -179.6396503 | Y33: -112.4461642
F34: -1000 | G34: 1.555555556 | H34: 1225.159898 | I34: -187680.7046 | J34: 1792.218712 | K34: 0.4444444444 | L34: 1011.72178 | M34: -4277.556007 | N34: -2485.337295 | O34: 2100 | Q34: -1000 | R34: 1.666666667 | S34: 240.0265479 | T34: -7155.502765 | U34: 68.33001812 | V34: 0.3333333333 | W34: 172.6104913 | X34: -176.6840557 | Y34: -108.3540376
F35: -950 | G35: 1.527777778 | H35: 1223.618209 | I35: -181081.834 | J35: 1820.214883 | K35: 0.4722222222 | L35: 1028.526307 | M35: -4160.785965 | N35: -2340.571081 | O35: 2100 | Q35: -950 | R35: 1.633333333 | S35: 239.6476371 | T35: -6914.573985 | U35: 69.50454499 | V35: 0.3666666667 | W35: 179.1117828 | X35: -172.949221 | Y35: -103.444676
F36: -900 | G36: 1.5 | H36: 1222.017359 | I36: -174271.1939 | J36: 1849.074797 | K36: 0.5 | L36: 1043.668038 | M36: -4046.185138 | N36: -2197.110341 | O36: 2100 | Q36: -900 | R36: 1.6 | S36: 239.2527676 | T36: -6665.102196 | U36: 70.71893071 | V36: 0.4 | W36: 184.7884511 | X36: -168.7451839 | Y36: -98.02625316
F37: -850 | G37: 1.472222222 | H37: 1220.353942 | I37: -167238.6987 | J37: 1878.83757 | K37: 0.5277777778 | L37: 1057.366689 | M37: -3934.514374 | N37: -2055.676804 | O37: 2100 | Q37: -850 | R37: 1.566666667 | S37: 238.8409261 | T37: -6406.637638 | U37: 71.97515638 | V37: 0.4333333333 | W37: 189.7757871 | X37: -164.286256 | Y37: -92.31109963
F38: -800 | G38: 1.444444444 | H38: 1218.624289 | I38: -159973.6338 | J38: 1909.544594 | K38: 0.5555555556 | L38: 1069.807013 | M38: -3826.259087 | N38: -1916.714493 | O38: 2100 | Q38: -800 | R38: 1.533333333 | S38: 238.4110127 | T38: -6138.699583 | U38: 73.27532871 | V38: 0.4666666667 | W38: 194.1832241 | X38: -159.7196543 | Y38: -86.44432559
F39: -750 | G39: 1.416666667 | H39: 1216.824443 | I39: -152464.6088 | J39: 1941.239691 | K39: 0.5833333333 | L39: 1081.145122 | M39: -3721.707006 | N39: -1780.467315 | O39: 2100 | Q39: -750 | R39: 1.5 | S39: 237.961832 | T39: -5860.773764 | U39: 74.62168919 | V39: 0.5 | W39: 198.0997289 | X39: -155.145608 | Y39: -80.52391879
F40: -700 | G40: 1.388888889 | H40: 1214.950131 | I40: -144699.5053 | J40: 1973.969274 | K40: 0.6111111111 | L40: 1091.513559 | M40: -3621.004607 | N40: -1647.035333 | O40: 2100 | Q40: -700 | R40: 1.466666667 | S40: 237.4920824 | T40: -5572.309559 | U40: 76.01662378 | V40: 0.5333333333 | W40: 201.5980391 | X40: -150.6314327 | Y40: -74.61480889
F41: -650 | G41: 1.361111111 | H41: 1212.996732 | I41: -136665.4214 | J41: 2007.782526 | K41: 0.6388888889 | L41: 1101.025386 | M41: -3524.198139 | N41: -1516.415613 | O41: 2100 | Q41: -650 | R41: 1.433333333 | S41: 237.0003445 | T41: -5272.716921 | U41: 77.46267337 | V41: 0.5666666667 | W41: 204.7379775 | X41: -146.22138 | Y41: -68.75870667
F42: -600 | G42: 1.333333333 | H42: 1210.959244 | I42: -128348.6111 | J42: 2042.731589 | K42: 0.6666666667 | L42: 1109.77749 | M42: -3431.263495 | N42: -1388.531906 | O42: 2100 | Q42: -600 | R42: 1.4 | S42: 236.4850672 | T42: -4961.363017 | U42: 78.96254486 | V42: 0.6 | W42: 207.5690424 | X42: -141.9435428 | Y42: -62.98099797
F43: -550 | G43: 1.305555556 | H43: 1208.832241 | I43: -119734.4179 | J43: 2078.871761 | K43: 0.6944444444 | L43: 1117.85326 | M43: -3342.127969 | N43: -1263.256209 | O43: 2100 | Q43: -550 | R43: 1.366666667 | S43: 235.9445526 | T43: -4637.568559 | U43: 80.51912291 | V43: 0.6333333333 | W43: 210.1324357 | X43: -137.8147083 | Y43: -57.29558541
F44: -500 | G44: 1.277777778 | H44: 1206.609828 | I44: -110807.2039 | J44: 2116.261707 | K44: 0.7222222222 | L44: 1125.324776 | M44: -3256.686108 | N44: -1140.424401 | O44: 2100 | Q44: -500 | R44: 1.333333333 | S44: 235.3769388 | T44: -4300.603795 | U44: 82.13548227 | V44: 0.6666666667 | W44: 212.4626546 | X44: -133.84378 | Y44: -51.7082977
F45: -450 | G45: 1.25 | H45: 1204.285594 | I45: -101550.2715 | J45: 2154.963691 | K45: 0.75 | L45: 1132.254596 | M45: -3174.811237 | N45: -1019.847546 | O45: 2100 | Q45: -450 | R45: 1.3 | S45: 234.7801792 | T45: -3949.684144 | U45: 83.8149007 | V45: 0.7 | W45: 214.588748 | X45: -130.0341967 | Y45: -46.219296
F46: -400 | G46: 1.222222222 | H46: 1201.85255 | I46: -91945.77973 | J46: 2195.043801 | K46: 0.7777777778 | L46: 1138.69723 | M46: -3096.363827 | N46: -901.3200256 | O46: 2100 | Q46: -400 | R46: 1.266666667 | S46: 234.1520202 | T46: -3583.96544 | U46: 85.56087235 | V46: 0.7333333333 | W46: 216.5353112 | X46: -126.3856477 | Y46: -40.82477532
F47: -350 | G47: 1.194444444 | H47: 1199.30307 | I47: -81974.65285 | J47: 2236.572207 | K47: 0.8055555556 | L47: 1144.70035 | M47: -3021.197534 | N47: -784.6253263 | O47: 2100 | Q47: -350 | R47: 1.233333333 | S47: 233.4899743 | T47: -3202.538763 | U47: 87.37712136 | V47: 0.7666666667 | W47: 218.3232791 | X47: -122.8952896 | Y47: -35.51816823
F48: -300 | G48: 1.166666667 | H48: 1196.628812 | I48: -71616.48166 | J48: 2279.623413 | K48: 0.8333333333 | L48: 1150.305802 | M48: -2949.163527 | N48: -669.5401142 | O48: 2100 | Q48: -300 | R48: 1.2 | S48: 232.7912897 | T48: -2804.424852 | U48: 89.26761554 | V48: 0.8 | W48: 219.9705605 | X48: -119.5586117 | Y48: -30.29099614
F49: -250 | G49: 1.138888889 | H49: 1193.820636 | I49: -60849.41703 | J49: 2324.276521 | K49: 0.8611111111 | L49: 1155.550444 | M49: -2880.11356 | N49: -555.8370385 | O49: 2100 | Q49: -250 | R49: 1.166666667 | S49: 232.0529153 | T49: -2388.568069 | U49: 91.23657963 | V49: 0.8333333333 | W49: 221.4925499 | X49: -116.3700496 | Y49: -25.13347
F50: -200 | G50: 1.111111111 | H50: 1190.868511 | I50: -49650.05507 | J50: 2370.615507 | K50: 0.8888888889 | L50: 1160.466846 | M50: -2813.902109 | N50: -443.2866028 | O50: 2100 | Q50: -200 | R50: 1.133333333 | S50: 231.2714591 | T50: -1953.829936 | U50: 93.28850769 | V50: 0.8666666667 | W50: 222.9025413 | X50: -113.3234203 | Y50: -20.03491265
F51: -150 | G51: 1.083333333 | H51: 1187.761403 | I51: -37993.31389 | J51: 2418.729484 | K51: 0.9166666667 | L51: 1165.083885 | M51: -2750.387837 | N51: -331.6583533 | O51: 2100 | Q51: -150 | R51: 1.1 | S51: 230.4431407 | T51: -1498.98225 | U51: 95.4281739 | V51: 0.9 | W51: 224.2120649 | X51: -110.4122283 | Y51: -14.98405438
F52: -100 | G52: 1.055555556 | H52: 1184.48715 | I52: -25852.30178 | J52: 2468.712972 | K52: 0.9444444444 | L52: 1169.427234 | M52: -2689.434543 | N52: -220.721571 | O52: 2100 | Q52: -100 | R52: 1.066666667 | S52: 229.5637352 | T52: -1022.699837 | U52: 97.66064065 | V52: 0.9333333333 | W52: 225.4311632 | X52: -107.6298796 | Y52: -9.969238992
F53: -50 | G53: 1.027777778 | H53: 1181.032317 | I53: -13198.17705 | J53: 2520.666141 | K53: 0.9722222222 | L53: 1173.519791 | M53: -2630.911751 | N53: -110.2456106 | O53: 2100 | Q53: -50 | R53: 1.033333333 | S53: 228.6285078 | T53: -523.5530263 | U53: 99.99126254 | V53: 0.9666666667 | W53: 226.5686176 | X53: -104.96983 | Y53: -4.978567456
F54: 0 | G54: 1 | H54: 1177.382033 | I54: 0 | J54: 2574.695035 | K54: 1 | L54: 1177.382033 | M54: -2574.695035 | N54: 0 | O54: 2100 | Q54: 0 | R54: 1 | S54: 227.6321358 | T54: 0 | U54: 102.4256843 | V54: 1 | W54: 227.6321358 | X54: -102.4256843 | Y54: 0
F55: 50 | G55: 0.9722222222 | H55: 1173.519791 | I55: 13775.42172 | J55: 2630.911751 | K55: 1.027777778 | L55: 1181.032317 | M55: -2520.666141 | N55: 110.2456106 | O55: 2100 | Q55: 50 | R55: 0.9666666667 | S55: 226.5686176 | T55: 549.6207446 | U55: 104.96983 | V55: 1.033333333 | W55: 228.6285078 | X55: -99.99126254 | Y55: 4.978567456
F56: 100 | G56: 0.9444444444 | H56: 1169.427234 | I56: 28163.69267 | J56: 2689.434543 | K56: 1.055555556 | L56: 1184.48715 | M56: -2468.712972 | N56: 220.721571 | O56: 2100 | Q56: 100 | R56: 0.9333333333 | S56: 225.4311632 | T56: 1127.097464 | U56: 107.6298796 | V56: 1.066666667 | W56: 229.5637352 | X56: -97.66064065 | Y56: 9.969238992
F57: 150 | G57: 0.9166666667 | H57: 1165.083885 | I57: 43202.99112 | J57: 2750.387837 | K57: 1.083333333 | L57: 1187.761403 | M57: -2418.729484 | N57: 331.6583533 | O57: 2100 | Q57: 150 | R57: 0.9 | S57: 224.2120649 | T57: 1734.351226 | U57: 110.4122283 | V57: 1.1 | W57: 230.4431407 | X57: -95.4281739 | Y57: 14.98405438
F58: 200 | G58: 0.8888888889 | H58: 1160.466846 | I58: 58934.22797 | J58: 2813.902109 | K58: 1.111111111 | L58: 1190.868511 | M58: -2370.615507 | N58: 443.2866028 | O58: 2100 | Q58: 200 | R58: 0.8666666667 | S58: 222.9025413 | T58: 2373.440165 | U58: 113.3234203 | V58: 1.133333333 | W58: 231.2714591 | X58: -93.28850769 | Y58: 20.03491265
F59: 250 | G59: 0.8611111111 | H59: 1155.550444 | I59: 75401.19667 | J59: 2880.11356 | K59: 1.138888889 | L59: 1193.820636 | M59: -2324.276521 | N59: 555.8370385 | O59: 2100 | Q59: 250 | R59: 0.8333333333 | S59: 221.4925499 | T59: 3046.560775 | U59: 116.3700496 | V59: 1.166666667 | W59: 232.0529153 | X59: -91.23657963 | Y59: 25.13347
F60: 300 | G60: 0.8333333333 | H60: 1150.305802 | I60: 92650.7047 | J60: 2949.163527 | K60: 1.166666667 | L60: 1196.628812 | M60: -2279.623413 | N60: 669.5401142 | O60: 2100 | Q60: 300 | R60: 0.8 | S60: 219.9705605 | T60: 3756.044561 | U60: 119.5586117 | V60: 1.2 | W60: 232.7912897 | X60: -89.26761554 | Y60: 30.29099614
F61: 350 | G61: 0.8055555556 | H61: 1144.70035 | I61: 110732.6731 | J61: 3021.197534 | K61: 1.194444444 | L61: 1199.30307 | M61: -2236.572207 | N61: 784.6253263 | O61: 2100 | Q61: 350 | R61: 0.7666666667 | S61: 218.3232791 | T61: 4504.347621 | U61: 122.8952896 | V61: 1.233333333 | W61: 233.4899743 | X61: -87.37712136 | Y61: 35.51816823
F62: 400 | G62: 0.7777777778 | H62: 1138.69723 | I62: 129700.1847 | J62: 3096.363827 | K62: 1.222222222 | L62: 1201.85255 | M62: -2195.043801 | N62: 901.3200256 | O62: 2100 | Q62: 400 | R62: 0.7333333333 | S62: 216.5353112 | T62: 5294.02963 | U62: 126.3856477 | V62: 1.266666667 | W62: 234.1520202 | X62: -85.56087235 | Y62: 40.82477532
F63: 450 | G63: 0.75 | H63: 1132.254596 | I63: 149609.4549 | J63: 3174.811237 | K63: 1.25 | L63: 1204.285594 | M63: -2154.963691 | N63: 1019.847546 | O63: 2100 | Q63: 450 | R63: 0.7 | S63: 214.588748 | T63: 6127.717156 | U63: 130.0341967 | V63: 1.3 | W63: 234.7801792 | X63: -83.8149007 | Y63: 46.219296
F64: 500 | G64: 0.7222222222 | H64: 1125.324776 | I64: 170519.6859 | J64: 3256.686108 | K64: 1.277777778 | L64: 1206.609828 | M64: -2116.261707 | N64: 1140.424401 | O64: 2100 | Q64: 500 | R64: 0.6666666667 | S64: 212.4626546 | T64: 7008.043931 | U64: 133.84378 | V64: 1.333333333 | W64: 235.3769388 | X64: -82.13548227 | Y64: 51.7082977
F65: 550 | G65: 0.6944444444 | H65: 1117.85326 | I65: 192492.7524 | J65: 3342.127969 | K65: 1.305555556 | L65: 1208.832241 | M65: -2078.871761 | N65: 1263.256209 | O65: 2100 | Q65: 550 | R65: 0.6333333333 | S65: 210.1324357 | T65: 7937.557379 | U65: 137.8147083 | V65: 1.366666667 | W65: 235.9445526 | X65: -80.51912291 | Y65: 57.29558541
F66: 600 | G66: 0.6666666667 | H66: 1109.77749 | I66: 215592.6438 | J66: 3431.263495 | K66: 1.333333333 | L66: 1210.959244 | M66: -2042.731589 | N66: 1388.531906 | O66: 2100 | Q66: 600 | R66: 0.6 | S66: 207.5690424 | T66: 8918.575828 | U66: 141.9435428 | V66: 1.4 | W66: 236.4850672 | X66: -78.96254486 | Y66: 62.98099797
F67: 650 | G67: 0.6388888889 | H67: 1101.025386 | I67: 239884.558 | J67: 3524.198139 | K67: 1.361111111 | L67: 1212.996732 | M67: -2007.782526 | N67: 1516.415613 | O67: 2100 | Q67: 650 | R67: 0.5666666667 | S67: 204.7379775 | T67: 9952.973622 | U67: 146.22138 | V67: 1.433333333 | W67: 237.0003445 | X67: -77.46267337 | Y67: 68.75870667
F68: 700 | G68: 0.6111111111 | H68: 1091.513559 | I68: 265433.501 | J68: 3621.004607 | K68: 1.388888889 | L68: 1214.950131 | M68: -1973.969274 | N68: 1647.035333 | O68: 2100 | Q68: 700 | R68: 0.5333333333 | S68: 201.5980391 | T68: 11041.86072 | U68: 150.6314327 | V68: 1.466666667 | W68: 237.4920824 | X68: -76.01662378 | Y68: 74.61480889
F69: 750 | G69: =($C$3-F69)/$C$3 -> 0.5833333333 | H69: =($B$7)/SQRT(($B$8+($B$9/$G69))^2+($B$10)^2) -> 1081.145122 | I69: =3*(H69)^2*($B$9*(1-G69)/G69) -> 292302.1847 | J69: =3*(H69)^2*$B$9/(G69*($C$3*(2*PI()/60))) -> 3721.707006 | K69: =(-$C$3-$F69)/-$C$3 -> 1.416666667 | L69: =($B$7)/SQRT(($B$8+($B$9/$K69))^2+($B$10)^2) -> 1216.824443 | M69: =-1*(3*(L69)^2*$B$9/(K69*($C$3*(2*PI()/60)))) -> -1941.239691 | N69: =J69+M69 -> 1780.467315 | O69: 2100 | Q69: 750 | R69: =($C$4-$Q69)/$C$4 -> 0.5 | S69: =($C$7)/SQRT(($C$8+($C$9/$R69))^2+($C$10)^2) -> 198.0997289 | T69: =3*(S69)^2*($C$9*(1-R69)/R69) -> 12185.10756 | U69: =3*(S69)^2*$C$9/(R69*($C$4*(2*PI()/60))) -> 155.145608 | V69: 1.5 | W69: =($C$7)/SQRT(($C$8+($C$9/$V69))^2+($C$10)^2) -> 237.961832 | X69: =-1*(3*(W69)^2*$C$9/(V69*($C$4*(2*PI()/60)))) -> -74.62168919 | Y69: =U69+X69 -> 80.52391879
F70: 800 | G70: 0.5555555556 | H70: =($B$7)/SQRT(($B$8+($B$9/$G70))^2+($B$10)^2) -> 1069.807013 | I70: 320547.9317 | J70: 3826.259087 | K70: 1.444444444 | L70: 1218.624289 | M70: -1909.544594 | N70: 1916.714493 | O70: 2100 | Q70: 800 | R70: 0.4666666667 | S70: 194.1832241 | T70: 13380.64247 | U70: 159.7196543 | V70: =(-$C$4-$Q70)/-$C$4 -> 1.533333333 | W70: 238.4110127 | X70: -73.27532871 | Y70: 86.44432559
F71: 850 | G71: 0.5277777778 | H71: 1057.366689 | I71: 350218.1745 | J71: 3934.514374 | K71: 1.472222222 | L71: 1220.353942 | M71: -1878.83757 | N71: 2055.676804 | O71: 2100 | Q71: 850 | R71: 0.4333333333 | S71: 189.7757871 | T71: 14623.41402 | U71: 164.286256 | V71: 1.566666667 | W71: 238.8409261 | X71: -71.97515638 | Y71: 92.31109963
F72: 900 | G72: 0.5 | H72: 1043.668038 | I72: 381343.9651 | J72: 4046.185138 | K72: 1.5 | L72: 1222.017359 | M72: -1849.074797 | N72: 2197.110341 | O72: 2100 | Q72: 900 | R72: 0.4 | S72: 184.7884511 | T72: 15903.8589 | U72: 168.7451839 | V72: 1.6 | W72: 239.2527676 | X72: -70.71893071 | Y72: 98.02625316
F73: 950 | G73: 0.4722222222 | H73: 1028.526307 | I73: 413930.663 | J73: 4160.785965 | K73: 1.527777778 | L73: 1223.618209 | M73: -1820.214883 | N73: 2340.571081 | O73: 2100 | Q73: 950 | R73: 0.3666666667 | S73: 179.1117828 | T73: 17205.64007 | U73: 172.949221 | V73: 1.633333333 | W73: 239.6476371 | X73: -69.50454499 | Y73: 103.444676
F74: 1000 | G74: 0.4444444444 | H74: 1011.72178 | I74: 447944.6175 | J74: 4277.556007 | K74: 1.555555556 | L74: 1225.159898 | M74: -1792.218712 | N74: 2485.337295 | O74: 2100 | Q74: 1000 | R74: 0.3333333333 | S74: 172.6104913 | T74: 18502.31104 | U74: 176.6840557 | V74: 1.666666667 | W74: 240.0265479 | X74: -68.33001812 | Y74: 108.3540376
F75: 1050 | G75: 0.4166666667 | H75: 992.991888 | I75: 483294.1605 | J75: 4395.351692 | K75: 1.583333333 | L75: 1226.645594 | M75: -1765.049296 | N75: 2630.302396 | O75: 2100 | Q75: 1050 | R75: 0.3 | S75: 165.1166482 | T75: 19752.4112 | U75: 179.6396503 | V75: 1.7 | W75: 240.3904352 | X75: -67.1934861 | Y75: 112.4461642
F76: 1100 | G76: 0.3888888889 | H76: 972.0213547 | I76: 519802.5053 | J76: 4512.498444 | K76: 1.611111111 | L76: 1228.078246 | M76: -1738.671645 | N76: 2773.8268 | O76: 2100 | Q76: 1100 | R76: 0.2666666667 | S76: 156.4213486 | T76: 20892.30465 | U76: 181.3698304 | V76: 1.733333333 | W76: 240.7401636 | X76: -66.09319417 | Y76: 115.2766363
F77: 1150 | G77: 0.3611111111 | H77: 948.4298914 | I77: 557169.1483 | J77: 4626.585605 | K77: 1.638888889 | L77: 1229.4606 | M77: -1713.052639 | N77: 2913.532967 | O77: 2100 | Q77: 1150 | R77: 0.2333333333 | S77: 146.2648869 | T77: 21825.86978 | U77: 181.2362641 | V77: 1.766666667 | W77: 241.076533 | X77: -65.02748937 | Y77: 116.2087748
F78: 1200 | G78: 0.3333333333 | H78: 921.7569041 | I78: 594914.9804 | J78: 4734.182992 | K78: 1.666666667 | L78: 1230.795221 | M78: -1688.160913 | N78: 3046.022079 | O78: 2100 | Q78: 1200 | R78: 0.2 | S78: 134.3261365 | T78: 22410.0406 | U78: 178.3334368 | V78: 1.8 | W78: 241.4002851 | X78: -63.99481379 | Y78: 114.338623
F79: 1250 | G79: 0.3055555556 | H79: 891.4426418 | I79: 632304.4574 | J79: 4830.450237 | K79: 1.694444444 | L79: 1232.084503 | M79: -1663.966748 | N79: 3166.483489 | O79: 2100 | Q79: 1250 | R79: 0.1666666667 | S79: 120.2131938 | T79: 22435.50657 | U79: 171.3946451 | V79: 1.833333333 | W79: 241.7121082 | X79: -62.99369816 | Y79: 108.4009469
F80: 1300 | G80: 0.2777777778 | H80: 856.8053243 | I80: 668235.8511 | J80: 4908.601793 | K80: 1.722222222 | L80: 1233.330684 | M80: -1640.441969 | N80: 3268.159824 | O80: 2100 | Q80: 1300 | R80: 0.1333333333 | S80: 103.4601138 | T80: 21603.33822 | U80: 158.6897568 | V80: 1.866666667 | W80: 242.0126418 | X80: -62.02275597 | Y80: 96.66700085
F81: 1350 | G81: 0.25 | H81: 817.014162 | I81: 701088.0015 | J81: 4959.183155 | K81: 1.75 | L81: 1234.535861 | M81: -1617.55985 | N81: 3341.623305 | O81: 2100 | Q81: 1350 | R81: 0.1 | S81: 83.53960259 | T81: 19502.4388 | U81: 137.951535 | V81: 1.9 | W81: 242.3024813 | X81: -61.08067805 | Y81: 76.87085697
F82: 1400 | G82: 0.2222222222 | H82: 771.0591034 | I82: 728509.959 | J82: 4969.112617 | K82: 1.777777778 | L82: 1235.701996 | M82: -1595.295025 | N82: 3373.817592 | O82: 2100 | Q82: 1400 | R82: 0.06666666667 | S82: 59.90936521 | T82: 15601.95698 | U82: 106.4197961 | V82: 1.933333333 | W82: 242.5821809 | X82: -60.16622744 | Y82: 46.25356863
F83: 1450 | G83: 0.1944444444 | H83: 717.720136 | I83: 747140.5885 | J83: 4920.460049 | K83: 1.805555556 | L83: 1236.830932 | M83: -1573.623409 | N83: 3346.836639 | O83: 2100 | Q83: 1450 | R83: 0.03333333333 | S83: 32.11846562 | T83: 9289.004684 | U83: 61.17480049 | V83: 1.966666667 | W83: 242.852258 | X83: -59.27823472 | Y83: 1.896565766
F84: 1500 | G84: 0.1666666667 | H84: 655.5428465 | I84: 752253.6096 | J84: 4788.995217 | K84: 1.833333333 | L84: 1237.924397 | M84: -1552.52212 | N84: 3236.473097 | O84: 2100 | Q84: 1500 | R84: 0 | V84: 2 | W84: 243.1131953 | X84: -58.41559367
F85: 1550 | G85: 0.1388888889 | H85: 582.83401 | I85: 737349.8096 | J85: 4542.691626 | K85: 1.861111111 | L85: 1238.984015 | M85: -1531.969406 | N85: 3010.722219 | O85: 2100 | Q85: 1550 | R85: -0.03333333333 | S85: 36.05504941 | T85: -12512.82839 | U85: -77.08948995 | V85: 2.033333333 | W85: 243.3654444 | X85: -57.57725717 | Y85: -134.6667471
F86: 1600 | G86: 0.1111111111 | H86: 497.7026463 | I86: 693780.3538 | J86: 4140.696477 | K86: 1.888888889 | L86: 1240.011315 | M86: -1511.944579 | N86: 2628.751898 | O86: 2100 | Q86: 1600 | R86: -0.06666666667 | S86: 74.83591537 | T86: -27822.85789 | U86: -166.0554511 | V86: 2.066666667 | W86: 243.6094277 | X86: -56.76223348 | Y86: -222.8176846
F87: 1650 | G87: 0.08333333333 | H87: 398.1887218 | I87: 610608.3035 | J87: 3533.866538 | K87: 1.916666667 | L87: 1241.007736 | M87: -1492.427953 | N87: 2041.438585 | O87: 2100 | Q87: 1650 | R87: -0.1 | S87: 114.2706738 | T87: -44598.87112 | U87: -258.1138471 | V87: 2.1 | W87: 243.8455409 | X87: -55.96958274 | Y87: -314.0834299
F88: 1700 | G88: 0.05555555556 | H88: 282.5393341 | I88: 475115.1366 | J88: 2668.83256 | K88: 1.944444444 | L88: 1241.974631 | M88: -1473.400788 | N88: 1195.431771 | O88: 2100 | Q88: 1700 | R88: -0.1333333333 | S88: 151.8069091 | T88: -60822.40741 | U88: -341.6536514 | V88: 2.133333333 | W88: 244.0741551 | X88: -55.19841373 | Y88: -396.8520652
F89: 1750 | G89: 0.02777777778 | H89: 149.6949106 | I89: 274583.3668 | J89: 1498.33029 | K89: 1.972222222 | L89: 1242.913278 | M89: -1454.845233 | N89: 43.48505738 | O89: 2100 | Q89: 1750 | R89: -0.1666666667 | S89: 185.1404959 | T89: -74501.06649 | U89: -406.5330171 | V89: 2.166666667 | W89: 244.2956186 | X89: -54.44788088 | Y89: -460.980898
F90: 1765 | G90: 0.01944444444 | H90: 106.4890436 | I90: 200206.7103 | J90: 1083.191646 | K90: 1.980555556 | L90: 1243.189547 | M90: -1449.367965 | N90: -366.176319 | O90: 2100
F91: 1800 | G91: 0 | H91: =($B$7)/SQRT(($B$8+($B$9/$G91))^2+($B$10)^2) ->  | K91: 2 | L91: 1243.824885 | M91: -1436.744273 | O91: 2100 | Q91: 1800 | R91: -0.2 | S91: 212.8718486 | T91: -84420.77174 | U91: -447.8661041 | V91: 2.2 | W91: 244.5102586 | X91: -53.71718141 | Y91: -501.5832855
F92: 1850 | G92: -0.02777777778 | H92: 163.9917503 | I92: -348367.6646 | J92: -1798.197919 | K92: 2.027777778 | L92: 1244.710588 | M92: -1419.081689 | N92: -3217.279608 | O92: 2100 | Q92: 1850 | R92: -0.2333333333 | S92: 234.696609 | T92: -90402.18303 | U92: -466.6363555 | V92: 2.233333333 | W92: 244.718383 | X92: -53.00555281 | Y92: -519.6419084
F93: 1900 | G93: -0.05555555556 | H93: 336.9858721 | I93: -755386.2918 | J93: -3796.530388 | K93: 2.055555556 | L93: 1245.571466 | M93: -1401.842007 | N93: -5198.372395 | O93: 2100 | Q93: 1900 | R93: -0.2666666667 | S93: 251.1394367 | T93: -93021.86569 | U93: -467.5228339 | V93: 2.266666667 | W93: 244.9202813 | X93: -52.31227034 | Y93: -519.8351042
F94: 1950 | G94: -0.08333333333 | H94: 511.2171756 | I94: -1189450.399 | J94: -5824.828016 | K94: 2.083333333 | L94: 1246.408535 | M94: -1385.01046 | N94: -7209.838476 | O94: 2100 | Q94: 1950 | R94: -0.3 | S94: 263.1272734 | T94: -93156.98691 | U94: -456.1967677 | V94: 2.3 | W94: 245.1162265 | X94: -51.63664484 | Y94: -507.8334125
F95: 2000 | G95: -0.1111111111 | H95: 677.8200889 | I95: -1608499.695 | J95: -7680.020324 | K95: 2.111111111 | L95: 1247.222759 | M95: -1368.572946 | N95: -9048.593271 | O95: 2100 | Q95: 2000 | R95: -0.3333333333 | S95: 271.650482 | T95: -91652.12857 | U95: -437.6066792 | V95: 2.333333333 | W95: 245.3064757 | X95: -50.97802057 | Y95: -488.5846998
F96: 2050 | G96: -0.1388888889 | H96: 828.8976602 | I96: -1972458.119 | J96: -9188.091501 | K96: 2.138888889 | L96: 1248.015052 | M96: -1352.515995 | N96: -10540.6075 | O96: 2100 | Q96: 2050 | R96: -0.3666666667 | S96: 277.5827396 | T96: -89173.88577 | U96: -415.3892112 | V96: 2.366666667 | W96: 245.4912718 | X96: -50.3357733 | Y96: -465.7249845
F97: 2100 | G97: -0.1666666667 | H97: 959.2761121 | I97: -2255160.262 | J97: -10254.85438 | K97: 2.166666667 | L97: 1248.786278 | M97: -1336.826734 | N97: -11591.68111 | O97: 2100 | Q97: 2100 | R97: -0.4 | S97: 281.6223671 | T97: -86191.4006 | U97: -391.9367845 | V97: 2.4 | W97: 245.670844 | X97: -49.70930845 | Y97: -441.646093
F98: 2150 | G98: -0.1944444444 | H98: 1067.112132 | I98: -2448965.355 | J98: -10877.16117 | K98: 2.194444444 | L98: 1249.537259 | M98: -1321.492852 | N98: -12198.65402 | O98: 2100 | Q98: 2150 | R98: -0.4333333333 | S98: 284.2977772 | T98: -83010.61592 | U98: -368.6944145 | V98: 2.433333333 | W98: 245.845409 | X98: -49.09805941 | Y98: -417.7924739
F99: 2200 | G99: -0.2222222222 | H99: 1153.340563 | I99: -2561355.931 | J99: -11117.79429 | K99: 2.222222222 | L99: 1250.268774 | M99: -1306.502576 | N99: -12424.29687 | O99: 2100 | Q99: 2200 | R99: -0.4666666667 | S99: 285.9968588 | T99: -79819.45746 | U99: -346.4634875 | V99: 2.466666667 | W99: 246.0151717 | X99: -48.50148591 | Y99: -394.9649735
F100: 2250 | G100: -0.25 | H100: 1220.571517 | I100: -2607885.847 | J100: -11068.21129 | K100: 2.25 | L100: 1250.981561 | M100: -1291.844637 | N100: -12360.05593 | O100: 2100 | Q100: 2250 | R100: -0.5 | S100: 286.9998536 | T100: -76726.64523 | U100: -325.6379962 | V100: 2.5 | W100: 246.1803262 | X100: -47.91907259 | Y100: -373.5570688
F101: 2300 | G101: -0.2777777778 | H101: 1272.05085 | I101: -2605906.848 | J101: -10819.38146 | K101: 2.277777778 | L101: 1251.676325 | M101: -1277.508245 | N101: -12096.88971 | O101: 2100 | Q101: 2300 | R101: -0.5333333333 | S101: 287.5077818 | T101: -73790.19558 | U101: -306.3671577 | V101: 2.533333333 | W101: 246.3410561 | X101: -47.35032758 | Y101: -353.7174853
F102: 2350 | G102: -0.3055555556 | H102: 1310.967678 | I102: -2570876.723 | J102: -10446.83588 | K102: 2.305555556 | L102: 1252.353735 | M102: -1263.483069 | N102: -11710.31895 | O102: 2100 | Q102: 2350 | R102: -0.5666666667 | S102: 287.6645549 | T102: -71036.77663 | U102: -288.6601058 | V102: 2.566666667 | W102: 246.4975357 | X102: -46.79478116 | Y102: -335.4548869
F103: 2400 | G103: -0.3333333333 | H103: 1340.110756 | I103: -2514973.931 | J103: -10006.76332 | K103: 2.333333333 | L103: 1253.014426 | M103: -1249.759205 | N103: -11256.52253 | O103: 2100 | Q103: 2400 | R103: -0.6 | S103: 287.5733097 | T103: -68474.28218 | U103: -272.4505121 | V103: 2.6 | W103: 246.6499301 | X103: -46.25198465 | Y103: -318.7024968
F104: 2450 | G104: -0.3611111111 | H104: 1361.762602 | I104: -2447077.052 | J104: -9537.903893 | K104: 2.361111111 | L104: 1253.659004 | M104: -1236.327163 | N104: -10774.23106 | Q104: 2450 | R104: -0.6333333333 | S104: 287.3081565 | T104: -66099.77705 | U104: -257.6352552 | V104: 2.633333333 | W104: 246.7983961 | X104: -45.72150914 | Y104: -303.3567644
F105: 2500 | G105: -0.3888888889 | H105: 1377.719855 | I105: -2373317.895 | J105: -9065.40659 | K105: 2.388888889 | L105: 1254.288047 | M105: -1223.17784 | N105: -10288.58443 | Q105: 2500 | R105: -0.6666666667 | S105: 286.9225225 | T105: -63904.41945 | U105: -244.0969018 | V105: 2.666666667 | W105: 246.9430827 | X105: -45.20294454 | Y105: -289.2998463

Sheet Hoja1 (hidden)
B2: 2000 | F2: 1500 | J2: 1000 | N2: 800 | R2: 750 | V2: 700 | Z2: 650 | AD2: 600 | AH2: 500 | AL2: 300
A3: Wmr (rpm) | B3: I (A) | C3: T(Nm) | E3: Wmr (rpm) | F3: I (A) | G3: T(Nm) | I3: Wmr (rpm) | J3: I (A) | K3: T(Nm) | M3: Wmr (rpm) | N3: I (A) | O3: T(Nm) | Q3: Wmr (rpm) | R3: I (A) | S3: T(Nm) | U3: Wmr (rpm) | V3: I (A) | W3: T(Nm) | Y3: Wmr (rpm) | Z3: I (A) | AA3: T(Nm) | AC3: Wmr (rpm) | AD3: I (A) | AE3: T(Nm) | AG3: Wmr (rpm) | AH3: I (A) | AI3: T(Nm) | AK3: Wmr (rpm) | AL3: I (A) | AM3: T(Nm)
A4: -1800 | B4: 16301.5873 | C4: 4670.060759 | E4: -1800 | F4: 12333.33333 | G4: 3533.239737 | I4: -1800 | J4: 8365.079365 | K4: 2396.418715 | M4: -1800 | N4: 6777.777778 | O4: 1941.690306 | Q4: -1800 | R4: 6380.952381 | S4: 1828.008204 | U4: -1800 | V4: 5984.126984 | W4: 1714.326101 | Y4: -1800 | Z4: 5587.301587 | AA4: 1600.643999 | AC4: -1800 | AD4: 5190.47619 | AE4: 1486.961897 | AG4: -1800 | AH4: 4396.825397 | AI4: 1259.597692 | AK4: -1800 | AL4: 2809.52381 | AM4: 804.8692836
A5: -1700 | B5: 16277.77778 | C5: 4663.239833 | E5: -1700 | F5: 12309.52381 | G5: 3526.418811 | I5: -1700 | J5: 8341.269841 | K5: 2389.597788 | M5: -1700 | N5: 6753.968254 | O5: 1934.86938 | Q5: -1700 | R5: 6357.142857 | S5: 1821.187277 | U5: -1700 | V5: 5960.31746 | W5: 1707.505175 | Y5: -1700 | Z5: 5563.492063 | AA5: 1593.823073 | AC5: -1700 | AD5: 5166.666667 | AE5: 1480.140971 | AG5: -1700 | AH5: 4373.015873 | AI5: 1252.776766 | AK5: -1700 | AL5: 2785.714286 | AM5: 798.0483575
A6: -1600 | B6: 16253.96825 | C6: 4656.418906 | E6: -1600 | F6: 12285.71429 | G6: 3519.597884 | I6: -1600 | J6: 8317.460317 | K6: 2382.776862 | M6: -1600 | N6: 6730.15873 | O6: 1928.048453 | Q6: -1600 | R6: 6333.333333 | S6: 1814.366351 | U6: -1600 | V6: 5936.507937 | W6: 1700.684249 | Y6: -1600 | Z6: 5539.68254 | AA6: 1587.002147 | AC6: -1600 | AD6: 5142.857143 | AE6: 1473.320045 | AG6: -1600 | AH6: 4349.206349 | AI6: 1245.95584 | AK6: -1600 | AL6: 2761.904762 | AM6: 791.2274314
A7: -1500 | B7: 16230.15873 | C7: 4649.59798 | E7: -1500 | F7: 12261.90476 | G7: 3512.776958 | I7: -1500 | J7: 8293.650794 | K7: 2375.955936 | M7: -1500 | N7: 6706.349206 | O7: 1921.227527 | Q7: -1500 | R7: 6309.52381 | S7: 1807.545425 | U7: -1500 | V7: 5912.698413 | W7: 1693.863323 | Y7: -1500 | Z7: 5515.873016 | AA7: 1580.181221 | AC7: -1500 | AD7: 5119.047619 | AE7: 1466.499118 | AG7: -1500 | AH7: 4325.396825 | AI7: 1239.134914 | AK7: -1500 | AL7: 2738.095238 | AM7: 784.4065052
A8: -1400 | B8: 16206.34921 | C8: 4642.777054 | E8: -1400 | F8: 12238.09524 | G8: 3505.956032 | I8: -1400 | J8: 8269.84127 | K8: 2369.13501 | M8: -1400 | N8: 6682.539683 | O8: 1914.406601 | Q8: -1400 | R8: 6285.714286 | S8: 1800.724499 | U8: -1400 | V8: 5888.888889 | W8: 1687.042397 | Y8: -1400 | Z8: 5492.063492 | AA8: 1573.360295 | AC8: -1400 | AD8: 5095.238095 | AE8: 1459.678192 | AG8: -1400 | AH8: 4301.587302 | AI8: 1232.313988 | AK8: -1400 | AL8: 2714.285714 | AM8: 777.5855791
A9: -1300 | B9: 16182.53968 | C9: 4635.956128 | E9: -1300 | F9: 12214.28571 | G9: 3499.135106 | I9: -1300 | J9: 8246.031746 | K9: 2362.314084 | M9: -1300 | N9: 6658.730159 | O9: 1907.585675 | Q9: -1300 | R9: 6261.904762 | S9: 1793.903573 | U9: -1300 | V9: 5865.079365 | W9: 1680.221471 | Y9: -1300 | Z9: 5468.253968 | AA9: 1566.539368 | AC9: -1300 | AD9: 5071.428571 | AE9: 1452.857266 | AG9: -1300 | AH9: 4277.777778 | AI9: 1225.493062 | AK9: -1300 | AL9: 2690.47619 | AM9: 770.764653
A10: -1200 | B10: 16158.73016 | C10: 4629.135202 | E10: -1200 | F10: 12190.47619 | G10: 3492.31418 | I10: -1200 | J10: 8222.222222 | K10: 2355.493158 | M10: -1200 | N10: 6634.920635 | O10: 1900.764749 | Q10: -1200 | R10: 6238.095238 | S10: 1787.082647 | U10: -1200 | V10: 5841.269841 | W10: 1673.400545 | Y10: -1200 | Z10: 5444.444444 | AA10: 1559.718442 | AC10: -1200 | AD10: 5047.619048 | AE10: 1446.03634 | AG10: -1200 | AH10: 4253.968254 | AI10: 1218.672136 | AK10: -1200 | AL10: 2666.666667 | AM10: 763.9437268
A11: -1100 | B11: 16134.92063 | C11: 4622.314276 | E11: -1100 | F11: 12166.66667 | G11: 3485.493254 | I11: -1100 | J11: 8198.412698 | K11: 2348.672232 | M11: -1100 | N11: 6611.111111 | O11: 1893.943823 | Q11: -1100 | R11: 6214.285714 | S11: 1780.261721 | U11: -1100 | V11: 5817.460317 | W11: 1666.579618 | Y11: -1100 | Z11: 5420.634921 | AA11: 1552.897516 | AC11: -1100 | AD11: 5023.809524 | AE11: 1439.215414 | AG11: -1100 | AH11: 4230.15873 | AI11: 1211.85121 | AK11: -1100 | AL11: 2642.857143 | AM11: 757.1228007
A12: -1000 | B12: 16111.11111 | C12: 4615.49335 | E12: -1000 | F12: 12142.85714 | G12: 3478.672328 | I12: -1000 | J12: 8174.603175 | K12: 2341.851305 | M12: -1000 | N12: 6587.301587 | O12: 1887.122897 | Q12: -1000 | R12: 6190.47619 | S12: 1773.440794 | U12: -1000 | V12: 5793.650794 | W12: 1659.758692 | Y12: -1000 | Z12: 5396.825397 | AA12: 1546.07659 | AC12: -1000 | AD12: 5000 | AE12: 1432.394488 | AG12: -1000 | AH12: 4206.349206 | AI12: 1205.030283 | AK12: -1000 | AL12: 2619.047619 | AM12: 750.3018746
A13: -900 | B13: 16087.30159 | C13: 4608.672424 | E13: -900 | F13: 12119.04762 | G13: 3471.851401 | I13: -900 | J13: 8150.793651 | K13: 2335.030379 | M13: -900 | N13: 6563.492063 | O13: 1880.301971 | Q13: -900 | R13: 6166.666667 | S13: 1766.619868 | U13: -900 | V13: 5769.84127 | W13: 1652.937766 | Y13: -900 | Z13: 5373.015873 | AA13: 1539.255664 | AC13: -900 | AD13: 4976.190476 | AE13: 1425.573562 | AG13: -900 | AH13: 4182.539683 | AI13: 1198.209357 | AK13: -900 | AL13: 2595.238095 | AM13: 743.4809484
A14: -800 | B14: 16063.49206 | C14: 4601.851497 | E14: -800 | F14: 12095.2381 | G14: 3465.030475 | I14: -800 | J14: 8126.984127 | K14: 2328.209453 | M14: -800 | N14: 6539.68254 | O14: 1873.481044 | Q14: -800 | R14: 6142.857143 | S14: 1759.798942 | U14: -800 | V14: 5746.031746 | W14: 1646.11684 | Y14: -800 | Z14: 5349.206349 | AA14: 1532.434738 | AC14: -800 | AD14: 4952.380952 | AE14: 1418.752636 | AG14: -800 | AH14: 4158.730159 | AI14: 1191.388431 | AK14: -800 | AL14: 2571.428571 | AM14: 736.6600223
A15: -700 | B15: 16039.68254 | C15: 4595.030571 | E15: -700 | F15: 12071.42857 | G15: 3458.209549 | I15: -700 | J15: 8103.174603 | K15: 2321.388527 | M15: -700 | N15: 6515.873016 | O15: 1866.660118 | Q15: -700 | R15: 6119.047619 | S15: 1752.978016 | U15: -700 | V15: 5722.222222 | W15: 1639.295914 | Y15: -700 | Z15: 5325.396825 | AA15: 1525.613812 | AC15: -700 | AD15: 4928.571429 | AE15: 1411.931709 | AG15: -700 | AH15: 4134.920635 | AI15: 1184.567505 | AK15: -700 | AL15: 2547.619048 | AM15: 729.8390962
A16: -600 | B16: 16015.87302 | C16: 4588.209645 | E16: -600 | F16: 12047.61905 | G16: 3451.388623 | I16: -600 | J16: 8079.365079 | K16: 2314.567601 | M16: -600 | N16: 6492.063492 | O16: 1859.839192 | Q16: -600 | R16: 6095.238095 | S16: 1746.15709 | U16: -600 | V16: 5698.412698 | W16: 1632.474988 | Y16: -600 | Z16: 5301.587302 | AA16: 1518.792886 | AC16: -600 | AD16: 4904.761905 | AE16: 1405.110783 | AG16: -600 | AH16: 4111.111111 | AI16: 1177.746579 | AK16: -600 | AL16: 2523.809524 | AM16: 723.01817
A17: -500 | B17: 15992.06349 | C17: 4581.388719 | E17: -500 | F17: 12023.80952 | G17: 3444.567697 | I17: -500 | J17: 8055.555556 | K17: 2307.746675 | M17: -500 | N17: 6468.253968 | O17: 1853.018266 | Q17: -500 | R17: 6071.428571 | S17: 1739.336164 | U17: -500 | V17: 5674.603175 | W17: 1625.654062 | Y17: -500 | Z17: 5277.777778 | AA17: 1511.971959 | AC17: -500 | AD17: 4880.952381 | AE17: 1398.289857 | AG17: -500 | AH17: 4087.301587 | AI17: 1170.925653 | AK17: -500 | AL17: 2500 | AM17: 716.1972439
A18: -400 | B18: 15968.25397 | C18: 4574.567793 | E18: -400 | F18: 12000 | G18: 3437.746771 | I18: -400 | J18: 8031.746032 | K18: 2300.925749 | M18: -400 | N18: 6444.444444 | O18: 1846.19734 | Q18: -400 | R18: 6047.619048 | S18: 1732.515238 | U18: -400 | V18: 5650.793651 | W18: 1618.833135 | Y18: -400 | Z18: 5253.968254 | AA18: 1505.151033 | AC18: -400 | AD18: 4857.142857 | AE18: 1391.468931 | AG18: -400 | AH18: 4063.492063 | AI18: 1164.104727 | AK18: -400 | AL18: 2476.190476 | AM18: 709.3763178
A19: -300 | B19: 15944.44444 | C19: 4567.746867 | E19: -300 | F19: 11976.19048 | G19: 3430.925845 | I19: -300 | J19: 8007.936508 | K19: 2294.104823 | M19: -300 | N19: 6420.634921 | O19: 1839.376414 | Q19: -300 | R19: 6023.809524 | S19: 1725.694312 | U19: -300 | V19: 5626.984127 | W19: 1612.012209 | Y19: -300 | Z19: 5230.15873 | AA19: 1498.330107 | AC19: -300 | AD19: 4833.333333 | AE19: 1384.648005 | AG19: -300 | AH19: 4039.68254 | AI19: 1157.2838 | AK19: -300 | AL19: 2452.380952 | AM19: 702.5553916
A20: -200 | B20: 15920.63492 | C20: 4560.925941 | E20: -200 | F20: 11952.38095 | G20: 3424.104919 | I20: -200 | J20: 7984.126984 | K20: 2287.283896 | M20: -200 | N20: 6396.825397 | O20: 1832.555488 | Q20: -200 | R20: 6000 | S20: 1718.873385 | U20: -200 | V20: 5603.174603 | W20: 1605.191283 | Y20: -200 | Z20: 5206.349206 | AA20: 1491.509181 | AC20: -200 | AD20: 4809.52381 | AE20: 1377.827079 | AG20: -200 | AH20: 4015.873016 | AI20: 1150.462874 | AK20: -200 | AL20: 2428.571429 | AM20: 695.7344655
A21: -100 | B21: 15896.8254 | C21: 4554.105014 | E21: -100 | F21: 11928.57143 | G21: 3417.283992 | I21: -100 | J21: 7960.31746 | K21: 2280.46297 | M21: -100 | N21: 6373.015873 | O21: 1825.734561 | Q21: -100 | R21: 5976.190476 | S21: 1712.052459 | U21: -100 | V21: 5579.365079 | W21: 1598.370357 | Y21: -100 | Z21: 5182.539683 | AA21: 1484.688255 | AC21: -100 | AD21: 4785.714286 | AE21: 1371.006153 | AG21: -100 | AH21: 3992.063492 | AI21: 1143.641948 | AK21: -100 | AL21: 2404.761905 | AM21: 688.9135394
A22: 0 | B22: 15873.01587 | C22: 4547.284088 | E22: 0 | F22: 11904.7619 | G22: 3410.463066 | I22: 0 | J22: 7936.507937 | K22: 2273.642044 | M22: 0 | N22: 6349.206349 | O22: 1818.913635 | Q22: 0 | R22: 5952.380952 | S22: 1705.231533 | U22: 0 | V22: 5555.555556 | W22: 1591.549431 | Y22: 0 | Z22: 5158.730159 | AA22: 1477.867329 | AC22: 0 | AD22: 4761.904762 | AE22: 1364.185227 | AG22: 0 | AH22: 3968.253968 | AI22: 1136.821022 | AK22: 0 | AL22: 2380.952381 | AM22: 682.0926133
A23: 100 | B23: 15849.20635 | C23: 4540.463162 | E23: 100 | F23: 11880.95238 | G23: 3403.64214 | I23: 100 | J23: 7912.698413 | K23: 2266.821118 | M23: 100 | N23: 6325.396825 | O23: 1812.092709 | Q23: 100 | R23: 5928.571429 | S23: 1698.410607 | U23: 100 | V23: 5531.746032 | W23: 1584.728505 | Y23: 100 | Z23: 5134.920635 | AA23: 1471.046403 | AC23: 100 | AD23: 4738.095238 | AE23: 1357.3643 | AG23: 100 | AH23: 3944.444444 | AI23: 1130.000096 | AK23: 100 | AL23: 2357.142857 | AM23: 675.2716871
A24: 200 | B24: 15825.39683 | C24: 4533.642236 | E24: 200 | F24: 11857.14286 | G24: 3396.821214 | I24: 200 | J24: 7888.888889 | K24: 2260.000192 | M24: 200 | N24: 6301.587302 | O24: 1805.271783 | Q24: 200 | R24: 5904.761905 | S24: 1691.589681 | U24: 200 | V24: 5507.936508 | W24: 1577.907579 | Y24: 200 | Z24: 5111.111111 | AA24: 1464.225476 | AC24: 200 | AD24: 4714.285714 | AE24: 1350.543374 | AG24: 200 | AH24: 3920.634921 | AI24: 1123.17917 | AK24: 200 | AL24: 2333.333333 | AM24: 668.450761
A25: 300 | B25: 15801.5873 | C25: 4526.82131 | E25: 300 | F25: 11833.33333 | G25: 3390.000288 | I25: 300 | J25: 7865.079365 | K25: 2253.179266 | M25: 300 | N25: 6277.777778 | O25: 1798.450857 | Q25: 300 | R25: 5880.952381 | S25: 1684.768755 | U25: 300 | V25: 5484.126984 | W25: 1571.086653 | Y25: 300 | Z25: 5087.301587 | AA25: 1457.40455 | AC25: 300 | AD25: 4690.47619 | AE25: 1343.722448 | AG25: 300 | AH25: 3896.825397 | AI25: 1116.358244 | AK25: 300 | AL25: 2309.52381 | AM25: 661.6298349
A26: 400 | B26: 15777.77778 | C26: 4520.000384 | E26: 400 | F26: 11809.52381 | G26: 3383.179362 | I26: 400 | J26: 7841.269841 | K26: 2246.35834 | M26: 400 | N26: 6253.968254 | O26: 1791.629931 | Q26: 400 | R26: 5857.142857 | S26: 1677.947829 | U26: 400 | V26: 5460.31746 | W26: 1564.265726 | Y26: 400 | Z26: 5063.492063 | AA26: 1450.583624 | AC26: 400 | AD26: 4666.666667 | AE26: 1336.901522 | AG26: 400 | AH26: 3873.015873 | AI26: 1109.537318 | AK26: 400 | AL26: 2285.714286 | AM26: 654.8089087
A27: 500 | B27: 15753.96825 | C27: 4513.179458 | E27: 500 | F27: 11785.71429 | G27: 3376.358436 | I27: 500 | J27: 7817.460317 | K27: 2239.537414 | M27: 500 | N27: 6230.15873 | O27: 1784.809005 | Q27: 500 | R27: 5833.333333 | S27: 1671.126902 | U27: 500 | V27: 5436.507937 | W27: 1557.4448 | Y27: 500 | Z27: 5039.68254 | AA27: 1443.762698 | AC27: 500 | AD27: 4642.857143 | AE27: 1330.080596 | AG27: 500 | AH27: 3849.206349 | AI27: 1102.716391 | AK27: 500 | AL27: 2261.904762 | AM27: 647.9879826
A28: 600 | B28: 15730.15873 | C28: 4506.358532 | E28: 600 | F28: 11761.90476 | G28: 3369.537509 | I28: 600 | J28: 7793.650794 | K28: 2232.716487 | M28: 600 | N28: 6206.349206 | O28: 1777.988079 | Q28: 600 | R28: 5809.52381 | S28: 1664.305976 | U28: 600 | V28: 5412.698413 | W28: 1550.623874 | Y28: 600 | Z28: 5015.873016 | AA28: 1436.941772 | AC28: 600 | AD28: 4619.047619 | AE28: 1323.25967 | AG28: 600 | AH28: 3825.396825 | AI28: 1095.895465 | AK28: 600 | AL28: 2238.095238 | AM28: 641.1670565
A29: 700 | B29: 15706.34921 | C29: 4499.537605 | E29: 700 | F29: 11738.09524 | G29: 3362.716583 | I29: 700 | J29: 7769.84127 | K29: 2225.895561 | M29: 700 | N29: 6182.539683 | O29: 1771.167152 | Q29: 700 | R29: 5785.714286 | S29: 1657.48505 | U29: 700 | V29: 5388.888889 | W29: 1543.802948 | Y29: 700 | Z29: 4992.063492 | AA29: 1430.120846 | AC29: 700 | AD29: 4595.238095 | AE29: 1316.438744 | AG29: 700 | AH29: 3801.587302 | AI29: 1089.074539 | AK29: 700 | AL29: 2214.285714 | AM29: 634.3461303
A30: 800 | B30: 15682.53968 | C30: 4492.716679 | E30: 800 | F30: 11714.28571 | G30: 3355.895657 | I30: 800 | J30: 7746.031746 | K30: 2219.074635 | M30: 800 | N30: 6158.730159 | O30: 1764.346226 | Q30: 800 | R30: 5761.904762 | S30: 1650.664124 | U30: 800 | V30: 5365.079365 | W30: 1536.982022 | Y30: 800 | Z30: 4968.253968 | AA30: 1423.29992 | AC30: 800 | AD30: 4571.428571 | AE30: 1309.617817 | AG30: 800 | AH30: 3777.777778 | AI30: 1082.253613 | AK30: 800 | AL30: 2190.47619 | AM30: 627.5252042
A31: 900 | B31: 15658.73016 | C31: 4485.895753 | E31: 900 | F31: 11690.47619 | G31: 3349.074731 | I31: 900 | J31: 7722.222222 | K31: 2212.253709 | M31: 900 | N31: 6134.920635 | O31: 1757.5253 | Q31: 900 | R31: 5738.095238 | S31: 1643.843198 | U31: 900 | V31: 5341.269841 | W31: 1530.161096 | Y31: 900 | Z31: 4944.444444 | AA31: 1416.478994 | AC31: 900 | AD31: 4547.619048 | AE31: 1302.796891 | AG31: 900 | AH31: 3753.968254 | AI31: 1075.432687 | AK31: 900 | AL31: 2166.666667 | AM31: 620.7042781
A32: 1000 | B32: 15634.92063 | C32: 4479.074827 | E32: 1000 | F32: 11666.66667 | G32: 3342.253805 | I32: 1000 | J32: 7698.412698 | K32: 2205.432783 | M32: 1000 | N32: 6111.111111 | O32: 1750.704374 | Q32: 1000 | R32: 5714.285714 | S32: 1637.022272 | U32: 1000 | V32: 5317.460317 | W32: 1523.34017 | Y32: 1000 | Z32: 4920.634921 | AA32: 1409.658067 | AC32: 1000 | AD32: 4523.809524 | AE32: 1295.975965 | AG32: 1000 | AH32: 3730.15873 | AI32: 1068.611761 | AK32: 1000 | AL32: 2142.857143 | AM32: 613.8833519
A33: 1100 | B33: 15611.11111 | C33: 4472.253901 | E33: 1100 | F33: 11642.85714 | G33: 3335.432879 | I33: 1100 | J33: 7674.603175 | K33: 2198.611857 | M33: 1100 | N33: 6087.301587 | O33: 1743.883448 | Q33: 1100 | R33: 5690.47619 | S33: 1630.201346 | U33: 1100 | V33: 5293.650794 | W33: 1516.519243 | Y33: 1100 | Z33: 4896.825397 | AA33: 1402.837141 | AC33: 1100 | AD33: 4500 | AE33: 1289.155039 | AG33: 1100 | AH33: 3706.349206 | AI33: 1061.790835 | AK33: 1100 | AL33: 2119.047619 | AM33: 607.0624258
A34: 1200 | B34: 15587.30159 | C34: 4465.432975 | E34: 1200 | F34: 11619.04762 | G34: 3328.611953 | I34: 1200 | J34: 7650.793651 | K34: 2191.790931 | M34: 1200 | N34: 6063.492063 | O34: 1737.062522 | Q34: 1200 | R34: 5666.666667 | S34: 1623.38042 | U34: 1200 | V34: 5269.84127 | W34: 1509.698317 | Y34: 1200 | Z34: 4873.015873 | AA34: 1396.016215 | AC34: 1200 | AD34: 4476.190476 | AE34: 1282.334113 | AG34: 1200 | AH34: 3682.539683 | AI34: 1054.969908 | AK34: 1200 | AL34: 2095.238095 | AM34: 600.2414997
A35: 1300 | B35: 15563.49206 | C35: 4458.612049 | E35: 1300 | F35: 11595.2381 | G35: 3321.791027 | I35: 1300 | J35: 7626.984127 | K35: 2184.970004 | M35: 1300 | N35: 6039.68254 | O35: 1730.241596 | Q35: 1300 | R35: 5642.857143 | S35: 1616.559493 | U35: 1300 | V35: 5246.031746 | W35: 1502.877391 | Y35: 1300 | Z35: 4849.206349 | AA35: 1389.195289 | AC35: 1300 | AD35: 4452.380952 | AE35: 1275.513187 | AG35: 1300 | AH35: 3658.730159 | AI35: 1048.148982 | AK35: 1300 | AL35: 2071.428571 | AM35: 593.4205735
A36: 1400 | B36: 15539.68254 | C36: 4451.791122 | E36: 1400 | F36: 11571.42857 | G36: 3314.9701 | I36: 1400 | J36: 7603.174603 | K36: 2178.149078 | M36: 1400 | N36: 6015.873016 | O36: 1723.420669 | Q36: 1400 | R36: 5619.047619 | S36: 1609.738567 | U36: 1400 | V36: 5222.222222 | W36: 1496.056465 | Y36: 1400 | Z36: 4825.396825 | AA36: 1382.374363 | AC36: 1400 | AD36: 4428.571429 | AE36: 1268.692261 | AG36: 1400 | AH36: 3634.920635 | AI36: 1041.328056 | AK36: 1400 | AL36: 2047.619048 | AM36: 586.5996474
A37: 1500 | B37: 15515.87302 | C37: 4444.970196 | E37: 1500 | F37: 11547.61905 | G37: 3308.149174 | I37: 1500 | J37: 7579.365079 | K37: 2171.328152 | M37: 1500 | N37: 5992.063492 | O37: 1716.599743 | Q37: 1500 | R37: 5595.238095 | S37: 1602.917641 | U37: 1500 | V37: 5198.412698 | W37: 1489.235539 | Y37: 1500 | Z37: 4801.587302 | AA37: 1375.553437 | AC37: 1500 | AD37: 4404.761905 | AE37: 1261.871335 | AG37: 1500 | AH37: 3611.111111 | AI37: 1034.50713 | AK37: 1500 | AL37: 2023.809524 | AM37: 579.7787213
A38: 1600 | B38: 15492.06349 | C38: 4438.14927 | E38: 1600 | F38: 11523.80952 | G38: 3301.328248 | I38: 1600 | J38: 7555.555556 | K38: 2164.507226 | M38: 1600 | N38: 5968.253968 | O38: 1709.778817 | Q38: 1600 | R38: 5571.428571 | S38: 1596.096715 | U38: 1600 | V38: 5174.603175 | W38: 1482.414613 | Y38: 1600 | Z38: 4777.777778 | AA38: 1368.732511 | AC38: 1600 | AD38: 4380.952381 | AE38: 1255.050408 | AG38: 1600 | AH38: 3587.301587 | AI38: 1027.686204 | AK38: 1600 | AL38: 2000 | AM38: 572.9577951
A39: 1700 | B39: 15468.25397 | C39: 4431.328344 | E39: 1700 | F39: 11500 | G39: 3294.507322 | I39: 1700 | J39: 7531.746032 | K39: 2157.6863 | M39: 1700 | N39: 5944.444444 | O39: 1702.957891 | Q39: 1700 | R39: 5547.619048 | S39: 1589.275789 | U39: 1700 | V39: 5150.793651 | W39: 1475.593687 | Y39: 1700 | Z39: 4753.968254 | AA39: 1361.911584 | AC39: 1700 | AD39: 4357.142857 | AE39: 1248.229482 | AG39: 1700 | AH39: 3563.492063 | AI39: 1020.865278 | AK39: 1700 | AL39: 1976.190476 | AM39: 566.136869
A40: 1800 | B40: 15444.44444 | C40: 4424.507418 | E40: 1800 | F40: 11476.19048 | G40: 3287.686396 | I40: 1800 | J40: 7507.936508 | K40: 2150.865374 | M40: 1800 | N40: 5920.634921 | O40: 1696.136965 | Q40: 1800 | R40: 5523.809524 | S40: 1582.454863 | U40: 1800 | V40: 5126.984127 | W40: 1468.772761 | Y40: 1800 | Z40: 4730.15873 | AA40: 1355.090658 | AC40: 1800 | AD40: 4333.333333 | AE40: 1241.408556 | AG40: 1800 | AH40: 3539.68254 | AI40: 1014.044352 | AK40: 1800 | AL40: 1952.380952 | AM40: 559.3159429
